Workbook

Sheet INGRESO DE DATOS
A11: Cotización de Seguro Médico - Bupa Global Health Plans
A13: 1. INGRESE LOS DATOS DEL PROPUESTO ASEGURADO : | J13: Diligenciar, solo si aplica otros dependientes, incluir edad. Edad máxima para otros dependientes hasta 24 años.
B15: Nombre del asegurado titular : | D15: JUAN VIDAL | J15: Otros dependientes: | K15: ID | L15: Edad
K16: 1 | M16: =IF(ISBLANK(L16),TRUE,AND(L16 >= 5,L16 <= 50)) -> TRUE
B17: Número de adultos en la póliza : | D17: 2 | F17: Número de hijos en la póliza : | H17: 0 | K17: 2 | M17: =IF(ISBLANK(L17),TRUE,AND(L17 >= 5,L17 <= 50)) -> TRUE
K18: 3 | M18: =IF(ISBLANK(L18),TRUE,AND(L18 >= 5,L18 <= 50)) -> TRUE
B19: Edad del asegurado titular : | D19: 30 | E19: =AND(D19 >= 5,D19 <= 50) -> TRUE | F19: Edad del (de la) cónyuge : | H19: 30 | I19: =IF(D17>1,AND(H19 >= 5,H19 <= 50),TRUE) -> TRUE | K19: 4 | M19: =IF(ISBLANK(L19),TRUE,AND(L19 >= 5,L19 <= 50)) -> TRUE
K20: 5 | M20: =IF(ISBLANK(L20),TRUE,AND(L20 >= 5,L20 <= 50)) -> TRUE
C21: Aplica descuento especial del 10%: | E21: TRUE | F21: *Descuento especial aplica para todos los productos globales a excepción de Select PE. *Descuento por pago fraccionado semestral aplica para todos los productos globales. *Descuento especial 5%, válido solo para asegurados titular y cónyuge entre 5 a 50 años (Si alguno de los integrantes no cumple la condición, no aplica descuento adicional) *Descuento especial 10% para el producto Choice Global, será aplicado a todos los integrantes de la póliza, si titular y cónyuge tienen edades entre 18 a 65 años (Si alguno de los integrantes, titular o conyuge, no cumple la condición, no aplica descuento)
C23: Aplica descuento especial del 5%: | E23: TRUE
A25: Descuento por pago fraccionado semestral: | E25: TRUE
B26: Descuento Choice | C26: =IF(D17=2,IF(AND(D19>=18,D19<=65,H19>=18,H19<=65),E26,1),IF(AND(D19>=18,D19<=65),E26,1)) -> 0 | D26: =1-(IF(E21,0.1,0)+IF(AND(E23,E19,I19,M16,M17,M18,M19,M20),0.05,0)) -> 0.85
A27: Descuento por pago fraccionado trimestral: | E27: TRUE
A29: 2. INGRESE EL NOMBRE DE LA AGENCIA ASESORA :
B31: Agencia / Agente : | D31: Nombre del Agente
A33: 3. ESCOJA EL PRODUCTO PARA VISUALIZAR LA COTIZACION RESPECTIVA :

Sheet Choice Global Health Plan
B18: Región: | C18: Zona 1
N19: FALSE
B20: Nombre del asegurado titular : | C20: =+'INGRESO DE DATOS'!$D$15 -> JUAN VIDAL | L20: Deducibles | N20: PLAN 1 | O20: PLAN 2 | P20: PLAN 3
L21: Dentro del país de residencia | N21: 5000 | O21: 10000 | P21: 20000
B22: Agencia / Agente : | C22: =+'INGRESO DE DATOS'!$D$31 -> Nombre del Agente | L22: Fuera del país de residencia | N22: 5000 | O22: 10000 | P22: 20000
B24: Número de adultos en la póliza : | D24: =+'INGRESO DE DATOS'!$D$17 -> 2 | E24: Edad del asegurado titular : | G24: ='INGRESO DE DATOS'!D19 -> 30 | H24: =IF(G24>65,"Edad máxima de cotización 65 años","") ->  | L24: TARIFAS ANUALES
L25: Prima del asegurado titular : | N25: =((VLOOKUP($G$24,Tablas!$A$1588:$E$1654,3,TRUE))*'INGRESO DE DATOS'!$D$26+(Tablas!$Q$2))*$K$33 -> 37026.25 | O25: =((VLOOKUP($G$24,Tablas!$A$1588:$E$1654,4,TRUE))*'INGRESO DE DATOS'!$D$26+(Tablas!$Q$2))*$K$33 -> 26358.75 | P25: =((VLOOKUP($G$24,Tablas!$A$1588:$E$1654,5,TRUE))*'INGRESO DE DATOS'!$D$26+(Tablas!$Q$2))*$K$33 -> 21641.25
B26: Número de hijos en la póliza : | D26: =+'INGRESO DE DATOS'!$H$17 -> 0 | E26: Edad del (de la) cónyuge : | G26: ='INGRESO DE DATOS'!H19 -> 30 | H26: =IF(G26>65,"Edad máxima de cotización 65 años","") ->  | L26: Prima del (de la) cónyuge: | N26: =((IF($D$24=1,0,(VLOOKUP($G$26,Tablas!$A$1588:$E$1654,3,TRUE))))*'INGRESO DE DATOS'!$D$26+(IF($D$24=1,0,(Tablas!$Q$2))))*$K$33 -> 37026.25 | O26: =((IF($D$24=1,0,(VLOOKUP($G$26,Tablas!$A$1588:$E$1654,4,TRUE))))*'INGRESO DE DATOS'!$D$26+(IF($D$24=1,0,(Tablas!$Q$2))))*$K$33 -> 26358.75 | P26: =((IF($D$24=1,0,(VLOOKUP($G$26,Tablas!$A$1588:$E$1654,5,TRUE))))*'INGRESO DE DATOS'!$D$26+(IF($D$24=1,0,(Tablas!$Q$2))))*$K$33 -> 21641.25
L27: Prima del (de los) Hijo (s) : | N27: =IF($D$26=0,0,(VLOOKUP($D$26,Tablas!$A$1655:$E$1657,3,TRUE)))*'INGRESO DE DATOS'!$D$26 -> 0 | O27: =IF($D$26=0,0,(VLOOKUP($D$26,Tablas!$A$1655:$E$1657,4,TRUE)))*'INGRESO DE DATOS'!$D$26 -> 0 | P27: =IF($D$26=0,0,(VLOOKUP($D$26,Tablas!$A$1655:$E$1657,5,TRUE)))*'INGRESO DE DATOS'!$D$26 -> 0
B28: FECHA DE COTIZACION : | D28: =NOW() -> 2025-06-25T13:21:39.390 | L28: Total otros dependientes | N28: =Tablas!Q1594*'INGRESO DE DATOS'!$D$26 -> 0 | O28: =Tablas!R1594*'INGRESO DE DATOS'!$D$26 -> 0 | P28: =Tablas!S1594*'INGRESO DE DATOS'!$D$26 -> 0
L29: TOTAL PRIMA NETA : | N29: =SUM(N25:N28) -> 74052.5 | O29: =SUM(O25:O28) -> 52717.5 | P29: 43282.5
C30: Beneficios Generales | L30: Costo administrativo anual : | N30: =937.5*$K$33 -> 937.5 | O30: =937.5*$K$33 -> 937.5 | P30: 937.5
C31: Edad de aceptación hasta los 65 años​ | K31: =IF(G24>65,0,1) -> 1 | L31: IVA (16%) : | N31: =+N29*16% -> 11848.4 | O31: =+O29*16% -> 8434.8 | P31: =+P29*16% -> 6925.2
C32: Un deducible por persona, hasta dos deducibles por póliza por año póliza​ | K32: =IF(G26>65,0,1) -> 1 | L32: =IF('INGRESO DE DATOS'!$D$26=0.95,"Costo total, (-5% de descuento)",IF('INGRESO DE DATOS'!$D$26=0.85,"Costo total, (-15% de descuento)",IF('INGRESO DE DATOS'!$D$26=0.9,"Costo total, (-10% de descuento)","Gran total anual"))) -> Costo total, (-15% de descuento) | N32: =SUM(N29:N31) + N30*0.16 -> 86988.4 | O32: =SUM(O29:O31) + O30*0.16 -> 62239.8 | P32: 51295.2
C33: Periodo de espera general: 60 días​ | K33: =IF(OR(K31=0,K32=0),0,1) -> 1
C34: Disponible para contratación en zonas regionales ​ | L34: TARIFAS SEMESTRALES
L35: Prima del asegurado titular : | N35: =N25*(1+Tablas!$K$4) -> 37026.25 | O35: =O25*(1+Tablas!$K$4) -> 26358.75 | P35: =P25*(1+Tablas!$K$4) -> 21641.25
C36: Beneficios Médicos Destacados | L36: Prima del (de la) cónyuge: | N36: =N26*(1+Tablas!$K$4) -> 37026.25 | O36: =O26*(1+Tablas!$K$4) -> 26358.75 | P36: =P26*(1+Tablas!$K$4) -> 21641.25
C37: Maternidad: parto normal y cesárea. ​ | L37: Prima del (de los) Hijo (s) : | N37: =N27*(1+Tablas!$K$4) -> 0 | O37: =O27*(1+Tablas!$K$4) -> 0 | P37: =P27*(1+Tablas!$K$4) -> 0
C38: Complicaciones de maternidad y parto ​ | L38: Total otros dependientes | N38: =N28*(1+Tablas!$K$4) -> 0 | O38: =O28*(1+Tablas!$K$4) -> 0 | P38: =P28*(1+Tablas!$K$4) -> 0
C39: Tratamiento pre y post natal​ | L39: TOTAL PRIMA NETA : | N39: =SUM(N35:N38) -> 74052.5 | O39: =SUM(O35:O38) -> 52717.5 | P39: 43282.5
C40: Trasplante de órganos ​ | L40: Costo administrativo anual : | N40: =N30 -> 937.5 | O40: =O30 -> 937.5 | P40: 937.5
C41: Tratamiento contra el cáncer ​ | L41: IVA (16%) : | N41: =SUM(N39:N40)*16% -> 11998.4 | O41: =SUM(O39:O40)*16% -> 8584.8 | P41: 7075.2
C42: Síndrome de inmunodeficiencia adquirida (SIDA)​ | L42: TOTAL primera cuota : | N42: =((N39/2)+N40)*1.16 -> 44037.95 | O42: =((O39/2)+O40)*1.16 -> 31663.65 | P42: 26191.35
C43: Actividades y/o deportes peligrosos amateur​ | L43: Valor segunda cuota : | N43: =N39/2*1.16 -> 42950.45 | O43: =O39/2*1.16 -> 30576.15 | P43: 25103.85
C44: Tratamiento dental relacionado con un accidente cubierto | L44: =L32 -> Costo total, (-15% de descuento) | N44: =N42+N43 -> 86988.4 | O44: =O42+O43 -> 62239.8 | P44: 51295.2
C45: Bupa en Casa
L46: TARIFAS TRIMESTRALES
C47: =IF(C18="Zona 1","Estados disponibles Zona 1: Sonora, Baja California Sur, Jalisco, Chihuahua, Coahuila, Tamaulipas, Hidalgo, Sinaloa, Guanajuato, Durango, Nayarit, Colima, Querétaro, Quintana Roo y Yucatán","Estados disponibles Zona 2: Veracruz, Chiapas, Tabasco, Campeche, Oaxaca, Michoacán, Zacatecas, Aguasccalientes y San Luis Potosí") -> Estados disponibles Zona 1: Sonora, Baja California Sur, Jalisco, Chihuahua, Coahuila, Tamaulipas, Hidalgo, Sinaloa, Guanajuato, Durango, Nayarit, Colima, Querétaro, Quintana Roo y Yucatán | L47: Prima del asegurado titular : | N47: =N25*(1+Tablas!$K$3) -> 37026.25 | O47: =O25*(1+Tablas!$K$3) -> 26358.75 | P47: =P25*(1+Tablas!$K$3) -> 21641.25
L48: Prima del (de la) cónyuge: | N48: =N26*(1+Tablas!$K$3) -> 37026.25 | O48: =O26*(1+Tablas!$K$3) -> 26358.75 | P48: =P26*(1+Tablas!$K$3) -> 21641.25
L49: Prima del (de los) Hijo (s) : | N49: =N27*(1+Tablas!$K$3) -> 0 | O49: =O27*(1+Tablas!$K$3) -> 0 | P49: =P27*(1+Tablas!$K$3) -> 0
L50: Total otros dependientes | N50: =N28*(1+Tablas!$K$3) -> 0 | O50: =O28*(1+Tablas!$K$3) -> 0 | P50: =P28*(1+Tablas!$K$3) -> 0
L51: TOTAL PRIMA NETA : | N51: =SUM(N47:N50) -> 74052.5 | O51: =SUM(O47:O50) -> 52717.5 | P51: 43282.5
L52: Costo administrativo anual : | N52: =N30 -> 937.5 | O52: =O30 -> 937.5 | P52: 937.5
L53: IVA (16%) : | N53: =+N51*16% -> 11848.4 | O53: =+O51*16% -> 8434.8 | P53: =+P51*16% -> 6925.2
L54: TOTAL primera cuota : | N54: =((N51/4)+N52)*1.16 -> 22562.725 | O54: =((O51/4)+O52)*1.16 -> 16375.575 | P54: 13639.425
L55: Valor cuota trimestral 2 a 4: | N55: =N51/4*1.16 -> 21475.225 | O55: =O51/4*1.16 -> 15288.075 | P55: 12551.925
L56: =L44 -> Costo total, (-15% de descuento) | N56: =N54+(N55*3) -> 86988.4 | O56: =O54+(O55*3) -> 62239.8 | P56: 51295.2
L58: TARIFAS MENSUALES
L59: Prima del asegurado titular : | N59: =N25*(1+Tablas!$K$2) -> 40358.6125 | O59: =O25*(1+Tablas!$K$2) -> 28731.0375 | P59: =P25*(1+Tablas!$K$2) -> 23588.9625
B60: Tarifas validas a partir del 1 de marzo al 31 de diciembre del 2025 | L60: Prima del (de la) cónyuge: | N60: =N26*(1+Tablas!$K$2) -> 40358.6125 | O60: =O26*(1+Tablas!$K$2) -> 28731.0375 | P60: =P26*(1+Tablas!$K$2) -> 23588.9625
B61: Promociones válidas al 31 de diciembre de 2025 | L61: Prima del (de los) Hijo (s) : | N61: =N27*(1+Tablas!$K$2) -> 0 | O61: =O27*(1+Tablas!$K$2) -> 0 | P61: =P27*(1+Tablas!$K$2) -> 0
B62: El 10% de descuento en productos Globales sobre prima neta será aplicable durante toda la vida de la póliza, siempre y cuando el asegurado no haga cambios en el plan y deducibles contratados. | L62: Total otros dependientes | N62: =N28*(1+Tablas!$K$2) -> 0 | O62: =O28*(1+Tablas!$K$2) -> 0 | P62: =P28*(1+Tablas!$K$2) -> 0
B63: Aplica 3 MSI (no aplica para tarjetas BBVA y Banamex) . Valido para Global Choice Health Plan | L63: TOTAL PRIMA NETA : | N63: =SUM(N59:N62) -> 80717.225 | O63: =SUM(O59:O62) -> 57462.075 | P63: 47177.925
B64: En caso de que el asegurado elija la promoción “Sin costo por pago fraccionado” no podrá optar por la promoción a meses sin intereses. | L64: Costo administrativo anual : | N64: =N30 -> 937.5 | O64: =O30 -> 937.5 | P64: 937.5
B65: Las pólizas contratadas cuentan con limitaciones y exclusiones las cuáles pueden ser consultadas en www.bupasalud.com.mx Para más información, llámanos al 55 5202-1701 ext 4 o envíanos un correo a: ventasdirectas@bupa.com.mx | L65: IVA (16%) : | N65: =+N63*16% -> 12914.756 | O65: =+O63*16% -> 9193.932 | P65: =+P63*16% -> 7548.468
B66: La presente cotización es de carácter informativo, no constituye una solicitud de seguro y/o el monto de la prima definitiva y/o las condiciones de la misma y/o una oferta de aseguramiento en términos del artículo 5to de la Ley Sobre el Contrato de Seguro. La emisión de la póliza asícomo posibles cambios en la tarifa están sujetos a valoración del riesgo de acuerdo con las políticas de Suscripción de Bupa México y es susceptible de modificaciones, por lo que Bupa podrá aceptar o negar el aseguramiento del riesgo propuesto. | L66: TOTAL primera cuota : | N66: =((N63/12)+N64)*1.16 -> 8890.165083 | O66: =((O63/12)+O64)*1.16 -> 6642.16725 | P66: =((P63/12)+P64)*1.16 -> 5648.03275
L67: Valor cuota mensual 2 a 12 : | N67: =N63/12*1.16 -> 7802.665083 | O67: =O63/12*1.16 -> 5554.66725 | P67: 4560.53275
L68: =L56 -> Costo total, (-15% de descuento) | N68: =N66+(N67*11) -> 94719.481 | O68: =O66+(O67*11) -> 67743.507 | P68: =P66+(P67*11) -> 55813.893

Sheet Global Major Medical Health Pla
M28: FALSE
B29: Nombre del asegurado titular : | C29: =+'INGRESO DE DATOS'!$D$15 -> JUAN VIDAL | K29: Deducibles | M29: PLAN 1 | N29: PLAN 2
K30: Dentro del país de residencia | M30: 10000 | N30: 20000
B31: Agencia / Agente : | C31: =+'INGRESO DE DATOS'!$D$31 -> Nombre del Agente | K31: Fuera del país de residencia | M31: 10000 | N31: 20000
D33: Número de adultos en la póliza : | F33: =+'INGRESO DE DATOS'!$D$17 -> 2 | H33: Edad del asegurado titular : | I33: =+'INGRESO DE DATOS'!$D$19 -> 30 | K33: TARIFAS ANUALES
K34: Prima del asegurado titular : | M34: =VLOOKUP($I$33,Tablas!$A$905:$G$971,3,TRUE)*'INGRESO DE DATOS'!$D$26+(Tablas!$Q$2) -> 47842.5 | N34: =VLOOKUP($I$33,Tablas!$A$905:$G$971,4,TRUE)*'INGRESO DE DATOS'!$D$26+(Tablas!$Q$2) -> 35092.5
D35: Número de hijos en la póliza : | F35: =+'INGRESO DE DATOS'!$H$17 -> 0 | H35: Edad del (de la) cónyuge : | I35: =+'INGRESO DE DATOS'!$H$19 -> 30 | K35: Prima del (de la) cónyuge: | M35: =(IF($F$33=1,0,(VLOOKUP($I$35,Tablas!$A$905:$G$971,3,TRUE))))*'INGRESO DE DATOS'!$D$26+(IF($F$33=1,0,(Tablas!$Q$2))) -> 47842.5 | N35: =(IF($F$33=1,0,(VLOOKUP($I$35,Tablas!$A$905:$G$971,4,TRUE))))*'INGRESO DE DATOS'!$D$26+(IF($F$33=1,0,(Tablas!$Q$2))) -> 35092.5
K36: Prima del (de los) Hijo (s) : | M36: =(IF($F$35=0,0,(VLOOKUP($F$35,Tablas!$A$972:$G$974,3,TRUE))))*'INGRESO DE DATOS'!$D$26 -> 0 | N36: =(IF($F$35=0,0,(VLOOKUP($F$35,Tablas!$A$972:$G$974,4,TRUE))))*'INGRESO DE DATOS'!$D$26 -> 0
C37: FECHA DE COTIZACION : | E37: =NOW() -> 2025-06-25T13:21:39.390 | K37: Total otros dependientes | M37: =Tablas!Q911*'INGRESO DE DATOS'!$D$26 -> 0 | N37: =Tablas!R911*'INGRESO DE DATOS'!$D$26 -> 0
K38: TOTAL PRIMA NETA : | M38: =SUM(M34:M37) -> 95685 | N38: =SUM(N34:N37) -> 70185
K39: Costo administrativo anual : | M39: 937.5 | N39: 937.5
K40: IVA (16%) : | M40: =+M38*16% -> 15309.6 | N40: =+N38*16% -> 11229.6
K41: =IF('INGRESO DE DATOS'!$D$26=0.95,"Costo total, (-5% de descuento)",IF('INGRESO DE DATOS'!$D$26=0.85,"Costo total, (-15% de descuento)",IF('INGRESO DE DATOS'!$D$26=0.9,"Costo total, (-10% de descuento)","Gran total anual"))) -> Costo total, (-15% de descuento) | M41: =SUM(M38:M40) + M39*0.16 -> 112082.1 | N41: =SUM(N38:N40) + N39*0.16 -> 82502.1
K43: TARIFAS SEMESTRALES
K44: Prima del asegurado titular : | M44: =M34*(1+Tablas!$K$4) -> 47842.5 | N44: =N34*(1+Tablas!$K$4) -> 35092.5
K45: Prima del (de la) cónyuge: | M45: =M35*(1+Tablas!$K$4) -> 47842.5 | N45: =N35*(1+Tablas!$K$4) -> 35092.5
K46: Prima del (de los) Hijo (s) : | M46: =M36*(1+Tablas!$K$4) -> 0 | N46: =N36*(1+Tablas!$K$4) -> 0
K47: =K37 -> Total otros dependientes | M47: =M37*(1+Tablas!$K$4) -> 0 | N47: =N37*(1+Tablas!$K$4) -> 0
K48: TOTAL PRIMA NETA : | M48: =SUM(M44:M47) -> 95685 | N48: =SUM(N44:N47) -> 70185
K49: Costo administrativo anual : | M49: 937.5 | N49: 937.5
K50: IVA (16%) : | M50: =SUM(M48:M49)*16% -> 15459.6 | N50: =SUM(N48:N49)*16% -> 11379.6
K51: TOTAL primera cuota : | M51: =((M48/2)+M49)*1.16 -> 56584.8 | N51: =((N48/2)+N49)*1.16 -> 41794.8
K52: Valor segunda cuota : | M52: =M48/2*1.16 -> 55497.3 | N52: =N48/2*1.16 -> 40707.3
K53: =K41 -> Costo total, (-15% de descuento) | M53: =M51+M52 -> 112082.1 | N53: =N51+N52 -> 82502.1
K55: TARIFAS TRIMESTRALES
K56: Prima del asegurado titular : | M56: =M34*(1+Tablas!$K$3) -> 47842.5 | N56: =N34*(1+Tablas!$K$3) -> 35092.5
K57: Prima del (de la) cónyuge: | M57: =M35*(1+Tablas!$K$3) -> 47842.5 | N57: =N35*(1+Tablas!$K$3) -> 35092.5
K58: Prima del (de los) Hijo (s) : | M58: =M36*(1+Tablas!$K$3) -> 0 | N58: =N36*(1+Tablas!$K$3) -> 0
K59: =K47 -> Total otros dependientes | M59: =M37*(1+Tablas!$K$3) -> 0 | N59: =N37*(1+Tablas!$K$3) -> 0
K60: TOTAL PRIMA NETA : | M60: =SUM(M56:M59) -> 95685 | N60: =SUM(N56:N59) -> 70185
K61: Costo administrativo anual : | M61: 937.5 | N61: 937.5
K62: IVA (16%) : | M62: =SUM(M60:M61)*16% -> 15459.6 | N62: =SUM(N60:N61)*16% -> 11379.6
K63: TOTAL primera cuota : | M63: =((M60/4)+M61)*1.16 -> 28836.15 | N63: =((N60/4)+N61)*1.16 -> 21441.15
K64: Valor cuota trimestral 2 a 4: | M64: =M60/4*1.16 -> 27748.65 | N64: =N60/4*1.16 -> 20353.65
K65: =K53 -> Costo total, (-15% de descuento) | M65: =M63+(M64*3) -> 112082.1 | N65: =N63+(N64*3) -> 82502.1
K67: TARIFAS MENSUALES
K68: Prima del asegurado titular : | M68: =M34*(1+Tablas!$K$2) -> 52148.325 | N68: =N34*(1+Tablas!$K$2) -> 38250.825
B69: Tarifas validas a partir del 1 de marzo al 31 de diciembre del 2025 | K69: Prima del (de la) cónyuge: | M69: =M35*(1+Tablas!$K$2) -> 52148.325 | N69: =N35*(1+Tablas!$K$2) -> 38250.825
B70: Promociones válidas al 31 de diciembre de 2025 | K70: Prima del (de los) Hijo (s) : | M70: =M36*(1+Tablas!$K$2) -> 0 | N70: =N36*(1+Tablas!$K$2) -> 0
B71: El 10% de descuento en productos Globales sobre prima neta será aplicable durante toda la vida de la póliza, siempre y cuando el asegurado no haga cambios en el plan y deducibles contratados. | K71: =K59 -> Total otros dependientes | M71: =M37*(1+Tablas!$K$2) -> 0 | N71: =N37*(1+Tablas!$K$2) -> 0
B72: En caso de que el asegurado elija la promoción “Sin costo por pago fraccionado” no podrá optar por la promoción a meses sin intereses. | K72: TOTAL PRIMA NETA : | M72: =SUM(M68:M71) -> 104296.65 | N72: =SUM(N68:N71) -> 76501.65
B73: Las pólizas contratadas cuentan con limitaciones y exclusiones las cuáles pueden ser consultadas en www.bupasalud.com.mx Para más información, llámanos al 55 5202-1701 ext 4 o envíanos un correo a: ventasdirectas@bupa.com.mx | K73: Costo administrativo anual : | M73: 937.5 | N73: 937.5
B74: La presente cotización es de carácter informativo, no constituye una solicitud de seguro y/o el monto de la prima definitiva y/o las condiciones de la misma y/o una oferta de aseguramiento en términos del artículo 5to de la Ley Sobre el Contrato de Seguro. La emisión de la póliza asícomo posibles cambios en la tarifa están sujetos a valoración del riesgo de acuerdo con las políticas de Suscripción de Bupa México y es susceptible de modificaciones, por lo que Bupa podrá aceptar o negar el aseguramiento del riesgo propuesto. | K74: IVA (16%) : | M74: =SUM(M72:M73)*16% -> 16837.464 | N74: =SUM(N72:N73)*16% -> 12390.264
K75: TOTAL primera cuota : | M75: =((M72/12)+M73)*1.16 -> 11169.5095 | N75: =((N72/12)+N73)*1.16 -> 8482.6595
K76: Valor cuota mensual 2 a 12 : | M76: =M72/12*1.16 -> 10082.0095 | N76: =N72/12*1.16 -> 7395.1595
K77: =K65 -> Costo total, (-15% de descuento) | M77: =M75+(M76*11) -> 122071.614 | N77: =N75+(N76*11) -> 89829.414

Sheet Global Select Health Plan
M32: FALSE
B33: Nombre del asegurado titular : | C33: =+'INGRESO DE DATOS'!$D$15 -> JUAN VIDAL | K33: Deducibles | M33: PLAN A | N33: PLAN 1 | O33: PLAN 2 | P33: PLAN 3 | Q33: PLAN 4
K34: Dentro del país de residencia | M34: 2000 | N34: 3500 | O34: 5000 | P34: 10000 | Q34: 20000
B35: Agencia / Agente : | C35: =+'INGRESO DE DATOS'!$D$31 -> Nombre del Agente | K35: Fuera del país de residencia | M35: 2000 | N35: 3500 | O35: 5000 | P35: 10000 | Q35: 20000
K37: TARIFAS ANUALES
B38: Número de adultos en la póliza : | C38: =+'INGRESO DE DATOS'!$D$17 -> 2 | F38: Edad del asegurado titular : | G38: =+'INGRESO DE DATOS'!$D$19 -> 30 | H38: =VLOOKUP($C$38,Tablas!A1503:B1504,2,0) -> 625 | K38: Prima del asegurado titular : | M38: =(VLOOKUP($G$38,Tablas!$A$305:$G$371,3,TRUE))*'INGRESO DE DATOS'!$D$26+(Tablas!$Q$2) -> 72450 | N38: =(VLOOKUP($G$38,Tablas!$A$305:$G$371,4,TRUE))*'INGRESO DE DATOS'!$D$26+(Tablas!$Q$2) -> 61304.375 | O38: =(VLOOKUP($G$38,Tablas!$A$305:$G$371,5,TRUE))*'INGRESO DE DATOS'!$D$26+(Tablas!$Q$2) -> 54260 | P38: =(VLOOKUP($G$38,Tablas!$A$305:$G$371,6,TRUE))*'INGRESO DE DATOS'!$D$26+(Tablas!$Q$2) -> 36399.375 | Q38: =(VLOOKUP($G$38,Tablas!$A$305:$G$371,7,TRUE))*'INGRESO DE DATOS'!$D$26+(Tablas!$Q$2) -> 28802.5
K39: Prima del (de la) cónyuge: | M39: =(IF($C$38=1,0,(VLOOKUP($G$40,Tablas!$A$305:$G$371,3,TRUE))))*'INGRESO DE DATOS'!$D$26+(IF($C$38=1,0,(Tablas!$Q$2))) -> 72450 | N39: =(IF($C$38=1,0,(VLOOKUP($G$40,Tablas!$A$305:$G$371,4,TRUE))))*'INGRESO DE DATOS'!$D$26+(IF($C$38=1,0,(Tablas!$Q$2))) -> 61304.375 | O39: =(IF($C$38=1,0,(VLOOKUP($G$40,Tablas!$A$305:$G$371,5,TRUE))))*'INGRESO DE DATOS'!$D$26+(IF($C$38=1,0,(Tablas!$Q$2))) -> 54260 | P39: =(IF($C$38=1,0,(VLOOKUP($G$40,Tablas!$A$305:$G$371,6,TRUE))))*'INGRESO DE DATOS'!$D$26+(IF($C$38=1,0,(Tablas!$Q$2))) -> 36399.375 | Q39: =(IF($C$38=1,0,(VLOOKUP($G$40,Tablas!$A$305:$G$371,7,TRUE))))*'INGRESO DE DATOS'!$D$26+(IF($C$38=1,0,(Tablas!$Q$2))) -> 28802.5
B40: Número de hijos en la póliza : | C40: =+'INGRESO DE DATOS'!$H$17 -> 0 | F40: Edad del (de la) cónyuge : | G40: =+'INGRESO DE DATOS'!$H$19 -> 30 | K40: Prima del (de los) Hijo (s) : | M40: =(IF($C$40=0,0,(VLOOKUP($C$40,Tablas!$A$372:$G$374,3,TRUE))))*'INGRESO DE DATOS'!$D$26 -> 0 | N40: =(IF($C$40=0,0,(VLOOKUP($C$40,Tablas!$A$372:$G$374,4,TRUE))))*'INGRESO DE DATOS'!$D$26 -> 0 | O40: =(IF($C$40=0,0,(VLOOKUP($C$40,Tablas!$A$372:$G$374,5,TRUE))))*'INGRESO DE DATOS'!$D$26 -> 0 | P40: =(IF($C$40=0,0,(VLOOKUP($C$40,Tablas!$A$372:$G$374,6,TRUE))))*'INGRESO DE DATOS'!$D$26 -> 0 | Q40: =(IF($C$40=0,0,(VLOOKUP($C$40,Tablas!$A$372:$G$374,7,TRUE))))*'INGRESO DE DATOS'!$D$26 -> 0
K41: Total otros dependientes | M41: =Tablas!Q306 * 'INGRESO DE DATOS'!$D$26 -> 0 | N41: =Tablas!R306 * 'INGRESO DE DATOS'!$D$26 -> 0 | O41: =Tablas!S306 * 'INGRESO DE DATOS'!$D$26 -> 0 | P41: =Tablas!T306 * 'INGRESO DE DATOS'!$D$26 -> 0 | Q41: =Tablas!U306 * 'INGRESO DE DATOS'!$D$26 -> 0
B42: FECHA DE COTIZACION : | D42: =NOW() -> 2025-06-25T13:21:39.390 | K42: TOTAL PRIMA NETA : | M42: =SUM(M38:M41) -> 144900 | N42: =SUM(N38:N41) -> 122608.75 | O42: 108520 | P42: 72798.75 | Q42: 57605
K43: Costo administrativo anual : | M43: 937.5 | N43: 937.5 | O43: 937.5 | P43: 937.5 | Q43: 937.5
K44: IVA (16%) : | M44: =SUM(M42:M43)*16% -> 23334 | N44: =SUM(N42:N43)*16% -> 19767.4 | O44: 17513.2 | P44: 11797.8 | Q44: 9366.8
K45: =IF('INGRESO DE DATOS'!$D$26=0.95,"Costo total, (-5% de descuento)",IF('INGRESO DE DATOS'!$D$26=0.85,"Costo total, (-15% de descuento)",IF('INGRESO DE DATOS'!$D$26=0.9,"Costo total, (-10% de descuento)","Gran total anual"))) -> Costo total, (-15% de descuento) | M45: =SUM(M42:M44) -> 169171.5 | N45: =SUM(N42:N44) -> 143313.65 | O45: 126970.7 | P45: 85534.05 | Q45: 67909.3
K47: TARIFAS SEMESTRALES
K48: Prima del asegurado titular : | M48: =M38*(1+Tablas!$K$4) -> 72450 | N48: =N38*(1+Tablas!$K$4) -> 61304.375 | O48: =O38*(1+Tablas!$K$4) -> 54260 | P48: =P38*(1+Tablas!$K$4) -> 36399.375 | Q48: =Q38*(1+Tablas!$K$4) -> 28802.5
K49: Prima del (de la) cónyuge: | M49: =M39*(1+Tablas!$K$4) -> 72450 | N49: =N39*(1+Tablas!$K$4) -> 61304.375 | O49: =O39*(1+Tablas!$K$4) -> 54260 | P49: =P39*(1+Tablas!$K$4) -> 36399.375 | Q49: =Q39*(1+Tablas!$K$4) -> 28802.5
K50: Prima del (de los) Hijo (s) : | M50: =M40*(1+Tablas!$K$4) -> 0 | N50: =N40*(1+Tablas!$K$4) -> 0 | O50: =O40*(1+Tablas!$K$4) -> 0 | P50: =P40*(1+Tablas!$K$4) -> 0 | Q50: =Q40*(1+Tablas!$K$4) -> 0
K51: Total otros dependientes | M51: =M41*(1+Tablas!$K$4) -> 0 | N51: =N41*(1+Tablas!$K$4) -> 0 | O51: =O41*(1+Tablas!$K$4) -> 0 | P51: =P41*(1+Tablas!$K$4) -> 0 | Q51: =Q41*(1+Tablas!$K$4) -> 0
K52: TOTAL PRIMA NETA : | M52: =SUM(M48:M51) -> 144900 | N52: =SUM(N48:N51) -> 122608.75 | O52: 108520 | P52: 72798.75 | Q52: =SUM(Q48:Q51) -> 57605
K53: Costo administrativo anual : | M53: 937.5 | N53: 937.5 | O53: 937.5 | P53: 937.5 | Q53: 937.5
K54: IVA (16%) : | M54: =SUM(M52:M53)*16% -> 23334 | N54: =SUM(N52:N53)*16% -> 19767.4 | O54: 17513.2 | P54: =SUM(P52:P53)*16% -> 11797.8 | Q54: 9366.8
K55: TOTAL primera cuota : | M55: =((M52/2)+M53)*1.16 -> 85129.5 | N55: =((N52/2)+N53)*1.16 -> 72200.575 | O55: 64029.1 | P55: 43310.775 | Q55: 34498.4
K56: Valor segunda cuota : | M56: =M52/2*1.16 -> 84042 | N56: =N52/2*1.16 -> 71113.075 | O56: 62941.6 | P56: 42223.275 | Q56: 33410.9
K57: =K45 -> Costo total, (-15% de descuento) | M57: =+M55+M56 -> 169171.5 | N57: =+N55+N56 -> 143313.65 | O57: 126970.7 | P57: =+P55+P56 -> 85534.05 | Q57: 67909.3
K59: TARIFAS TRIMESTRALES
K60: Prima del asegurado titular : | M60: =M38*(1+Tablas!$K$3) -> 72450 | N60: =N38*(1+Tablas!$K$3) -> 61304.375 | O60: =O38*(1+Tablas!$K$3) -> 54260 | P60: =P38*(1+Tablas!$K$3) -> 36399.375 | Q60: =Q38*(1+Tablas!$K$3) -> 28802.5
K61: Prima del (de la) cónyuge: | M61: =M39*(1+Tablas!$K$3) -> 72450 | N61: =N39*(1+Tablas!$K$3) -> 61304.375 | O61: =O39*(1+Tablas!$K$3) -> 54260 | P61: =P39*(1+Tablas!$K$3) -> 36399.375 | Q61: =Q39*(1+Tablas!$K$3) -> 28802.5
K62: Prima del (de los) Hijo (s) : | M62: =M40*(1+Tablas!$K$3) -> 0 | N62: =N40*(1+Tablas!$K$3) -> 0 | O62: =O40*(1+Tablas!$K$3) -> 0 | P62: =P40*(1+Tablas!$K$3) -> 0 | Q62: =Q40*(1+Tablas!$K$3) -> 0
K63: Total otros dependientes | M63: =M41*(1+Tablas!$K$3) -> 0 | N63: =N41*(1+Tablas!$K$3) -> 0 | O63: =O41*(1+Tablas!$K$3) -> 0 | P63: =P41*(1+Tablas!$K$3) -> 0 | Q63: =Q41*(1+Tablas!$K$3) -> 0
K64: TOTAL PRIMA NETA : | M64: =SUM(M60:M63) -> 144900 | N64: =SUM(N60:N63) -> 122608.75 | O64: 108520 | P64: 72798.75 | Q64: =SUM(Q60:Q63) -> 57605
K65: Costo administrativo anual : | M65: 937.5 | N65: 937.5 | O65: 937.5 | P65: 937.5 | Q65: 937.5
K66: IVA (16%) : | M66: =SUM(M64:M65)*16% -> 23334 | N66: =SUM(N64:N65)*16% -> 19767.4 | O66: =SUM(O64:O65)*16% -> 17513.2 | P66: =SUM(P64:P65)*16% -> 11797.8 | Q66: 9366.8
K67: TOTAL primera cuota : | M67: =((M64/4)+M65)*1.16 -> 43108.5 | N67: =((N64/4)+N65)*1.16 -> 36644.0375 | O67: =((O64/4)+O65)*1.16 -> 32558.3 | P67: 22199.1375 | Q67: 17792.95
K68: Valor cuota trimestral 2 a 4: | M68: =M64/4*1.16 -> 42021 | N68: =N64/4*1.16 -> 35556.5375 | O68: 31470.8 | P68: 21111.6375 | Q68: 16705.45
K69: =K57 -> Costo total, (-15% de descuento) | M69: =M67+(M68*3) -> 169171.5 | N69: =N67+(N68*3) -> 143313.65 | O69: =O67+(O68*3) -> 126970.7 | P69: =P67+(P68*3) -> 85534.05 | Q69: 67909.3
K71: TARIFAS MENSUALES
K72: Prima del asegurado titular : | M72: =M38*(1+Tablas!$K$2) -> 78970.5 | N72: =N38*(1+Tablas!$K$2) -> 66821.76875 | O72: =O38*(1+Tablas!$K$2) -> 59143.4 | P72: =P38*(1+Tablas!$K$2) -> 39675.31875 | Q72: =Q38*(1+Tablas!$K$2) -> 31394.725
B73: Tarifas validas a partir del 1 de marzo al 31 de diciembre del 2025 | K73: Prima del (de la) cónyuge: | M73: =M39*(1+Tablas!$K$2) -> 78970.5 | N73: =N39*(1+Tablas!$K$2) -> 66821.76875 | O73: =O39*(1+Tablas!$K$2) -> 59143.4 | P73: =P39*(1+Tablas!$K$2) -> 39675.31875 | Q73: =Q39*(1+Tablas!$K$2) -> 31394.725
B74: Promociones válidas al 31 de diciembre de 2025 | K74: Prima del (de los) Hijo (s) : | M74: =M40*(1+Tablas!$K$2) -> 0 | N74: =N40*(1+Tablas!$K$2) -> 0 | O74: =O40*(1+Tablas!$K$2) -> 0 | P74: =P40*(1+Tablas!$K$2) -> 0 | Q74: =Q40*(1+Tablas!$K$2) -> 0
B75: El 10% de descuento en productos Globales sobre prima neta será aplicable durante toda la vida de la póliza, siempre y cuando el asegurado no haga cambios en el plan y deducibles contratados. | K75: Total otros dependientes | M75: =M41*(1+Tablas!$K$2) -> 0 | N75: =N41*(1+Tablas!$K$2) -> 0 | O75: =O41*(1+Tablas!$K$2) -> 0 | P75: =P41*(1+Tablas!$K$2) -> 0 | Q75: =Q41*(1+Tablas!$K$2) -> 0
B76: En caso de que el asegurado elija la promoción “Sin costo por pago fraccionado” no podrá optar por la promoción a meses sin intereses. | K76: TOTAL PRIMA NETA : | M76: =SUM(M72:M75) -> 157941 | N76: =SUM(N72:N75) -> 133643.5375 | O76: 118286.8 | P76: 79350.6375 | Q76: =SUM(Q72:Q75) -> 62789.45
B77: Las pólizas contratadas cuentan con limitaciones y exclusiones las cuáles pueden ser consultadas en www.bupasalud.com.mx Para más información, llámanos al 55 5202-1701 ext 4 o envíanos un correo a: ventasdirectas@bupa.com.mx | K77: Costo administrativo anual : | M77: 937.5 | N77: 937.5 | O77: 937.5 | P77: 937.5 | Q77: 937.5
B78: La presente cotización es de carácter informativo, no constituye una solicitud de seguro y/o el monto de la prima definitiva y/o las condiciones de la misma y/o una oferta de aseguramiento en términos del artículo 5to de la Ley Sobre el Contrato de Seguro. La emisión de la póliza asícomo posibles cambios en la tarifa están sujetos a valoración del riesgo de acuerdo con las políticas de Suscripción de Bupa México y es susceptible de modificaciones, por lo que Bupa podrá aceptar o negar el aseguramiento del riesgo propuesto. | K78: IVA (16%) : | M78: =SUM(M76:M77)*16% -> 25420.56 | N78: =SUM(N76:N77)*16% -> 21532.966 | O78: 19075.888 | P78: =SUM(P76:P77)*16% -> 12846.102 | Q78: 10196.312
K79: TOTAL primera cuota : | M79: =((M76/12)+M77)*1.16 -> 16355.13 | N79: =((N76/12)+N77)*1.16 -> 14006.37529 | O79: 12521.89067 | P79: 8758.061625 | Q79: 7157.146833
K80: Valor cuota mensual 2 a 12 : | M80: =M76/12*1.16 -> 15267.63 | N80: =N76/12*1.16 -> 12918.87529 | O80: 11434.39067 | P80: 7670.561625 | Q80: 6069.646833
K81: =K69 -> Costo total, (-15% de descuento) | M81: =M79+(M80*11) -> 184299.06 | N81: =N79+(N80*11) -> 156114.0035 | O81: =O79+(O80*11) -> 138300.188 | P81: =P79+(P80*11) -> 93134.2395 | Q81: 73923.262

Sheet Global Premier Health Plan
B36: Nombre del asegurado titular : | C36: =+'INGRESO DE DATOS'!$D$15 -> JUAN VIDAL | L36: Deducibles | N36: PLAN A | O36: PLAN 1 | P36: PLAN 2 | Q36: PLAN 3
L37: Dentro del país de residencia | N37: 1000 | O37: 2000 | P37: 5000 | Q37: 10000
B38: Agencia / Agente : | C38: =+'INGRESO DE DATOS'!$D$31 -> Nombre del Agente | L38: Fuera del país de residencia | N38: 1000 | O38: 2000 | P38: 5000 | Q38: 10000
C40: Número de adultos en la póliza : | D40: =+'INGRESO DE DATOS'!$D$17 -> 2 | F40: Edad del asegurado titular : | G40: =+'INGRESO DE DATOS'!$D$19 -> 30 | I40: =VLOOKUP($D$40,Tablas!A1503:B1504,2,0) -> 625 | L40: TARIFAS ANUALES
L41: Prima del asegurado titular : | N41: =(VLOOKUP($G$40,Tablas!$A$155:$G$221,3,TRUE))*'INGRESO DE DATOS'!$D$26+(Tablas!$Q$2) -> 153646.25 | O41: =(VLOOKUP($G$40,Tablas!$A$155:$G$221,4,TRUE))*'INGRESO DE DATOS'!$D$26+(Tablas!$Q$2) -> 111103.75 | P41: =(VLOOKUP($G$40,Tablas!$A$155:$G$221,5,TRUE))*'INGRESO DE DATOS'!$D$26+(Tablas!$Q$2) -> 77666.875 | Q41: =(VLOOKUP($G$40,Tablas!$A$155:$G$221,6,TRUE))*'INGRESO DE DATOS'!$D$26+(Tablas!$Q$2) -> 58775.625
C42: Número de hijos en la póliza : | D42: =+'INGRESO DE DATOS'!$H$17 -> 0 | F42: Edad del (de la) cónyuge : | G42: =+'INGRESO DE DATOS'!$H$19 -> 30 | L42: Prima del (de la) cónyuge: | N42: =(IF($D$40=1,0,(VLOOKUP($G$42,Tablas!$A$155:$G$221,3,TRUE))))*'INGRESO DE DATOS'!$D$26+(IF($D$40=1,0,(Tablas!$Q$2))) -> 153646.25 | O42: =(IF($D$40=1,0,(VLOOKUP($G$42,Tablas!$A$155:$G$221,4,TRUE))))*'INGRESO DE DATOS'!$D$26+(IF($D$40=1,0,(Tablas!$Q$2))) -> 111103.75 | P42: =(IF($D$40=1,0,(VLOOKUP($G$42,Tablas!$A$155:$G$221,5,TRUE))))*'INGRESO DE DATOS'!$D$26+(IF($D$40=1,0,(Tablas!$Q$2))) -> 77666.875 | Q42: =(IF($D$40=1,0,(VLOOKUP($G$42,Tablas!$A$155:$G$221,6,TRUE))))*'INGRESO DE DATOS'!$D$26+(IF($D$40=1,0,(Tablas!$Q$2))) -> 58775.625
L43: Prima del (de los) Hijo (s) : | N43: =(IF($D$42=0,0,(VLOOKUP($D$42,Tablas!$A$222:$G$224,3,TRUE))))*'INGRESO DE DATOS'!$D$26 -> 0 | O43: =(IF($D$42=0,0,(VLOOKUP($D$42,Tablas!$A$222:$G$224,4,TRUE))))*'INGRESO DE DATOS'!$D$26 -> 0 | P43: =(IF($D$42=0,0,(VLOOKUP($D$42,Tablas!$A$222:$G$224,5,TRUE))))*'INGRESO DE DATOS'!$D$26 -> 0 | Q43: =(IF($D$42=0,0,(VLOOKUP($D$42,Tablas!$A$222:$G$224,6,TRUE))))*'INGRESO DE DATOS'!$D$26 -> 0
B44: FECHA DE COTIZACION : | D44: =NOW() -> 2025-06-25T13:21:39.390 | L44: Total otros dependientes | N44: =Tablas!Q156*'INGRESO DE DATOS'!$D$26 -> 0 | O44: =Tablas!R156*'INGRESO DE DATOS'!$D$26 -> 0 | P44: =Tablas!S156*'INGRESO DE DATOS'!$D$26 -> 0 | Q44: =Tablas!T156*'INGRESO DE DATOS'!$D$26 -> 0
L45: TOTAL PRIMA NETA : | N45: =SUM(N41:N44) -> 307292.5 | O45: =SUM(O41:O44) -> 222207.5 | P45: 155333.75 | Q45: 117551.25
L46: Costo administrativo anual : | N46: 937.5 | O46: 937.5 | P46: 937.5 | Q46: 937.5
L47: IVA (16%) : | N47: =SUM(N45:N46)*16% -> 49316.8 | O47: =SUM(O45:O46)*16% -> 35703.2 | P47: =SUM(P45:P46)*16% -> 25003.4 | Q47: 18958.2
L48: =IF('INGRESO DE DATOS'!$D$26=0.95,"Costo total, (-5% de descuento)",IF('INGRESO DE DATOS'!$D$26=0.85,"Costo total, (-15% de descuento)",IF('INGRESO DE DATOS'!$D$26=0.9,"Costo total, (-10% de descuento)","Gran total anual"))) -> Costo total, (-15% de descuento) | N48: =SUM(N45:N47) -> 357546.8 | O48: =SUM(O45:O47) -> 258848.2 | P48: =SUM(P45:P47) -> 181274.65 | Q48: 137446.95
L50: TARIFAS SEMESTRALES
L51: Prima del asegurado titular : | N51: =N41*(1+Tablas!$K$4) -> 153646.25 | O51: =O41*(1+Tablas!$K$4) -> 111103.75 | P51: =P41*(1+Tablas!$K$4) -> 77666.875 | Q51: =Q41*(1+Tablas!$K$4) -> 58775.625
L52: Prima del (de la) cónyuge: | N52: =N42*(1+Tablas!$K$4) -> 153646.25 | O52: =O42*(1+Tablas!$K$4) -> 111103.75 | P52: =P42*(1+Tablas!$K$4) -> 77666.875 | Q52: =Q42*(1+Tablas!$K$4) -> 58775.625
L53: Prima del (de los) Hijo (s) : | N53: =N43*(1+Tablas!$K$4) -> 0 | O53: =O43*(1+Tablas!$K$4) -> 0 | P53: =P43*(1+Tablas!$K$4) -> 0 | Q53: =Q43*(1+Tablas!$K$4) -> 0
L54: Total otros dependientes | N54: =N44*(1+Tablas!$K$4) -> 0 | O54: =O44*(1+Tablas!$K$4) -> 0 | P54: =P44*(1+Tablas!$K$4) -> 0 | Q54: =Q44*(1+Tablas!$K$4) -> 0
L55: TOTAL PRIMA NETA : | N55: =SUM(N51:N54) -> 307292.5 | O55: =SUM(O51:O54) -> 222207.5 | P55: 155333.75 | Q55: 117551.25
L56: Costo administrativo anual : | N56: 937.5 | O56: 937.5 | P56: 937.5 | Q56: 937.5
L57: IVA (16%) : | N57: =SUM(N55:N56)*16% -> 49316.8 | O57: =SUM(O55:O56)*16% -> 35703.2 | P57: 25003.4 | Q57: 18958.2
L58: TOTAL primera cuota : | N58: =((N55/2)+N56)*1.16 -> 179317.15 | O58: =((O55/2)+O56)*1.16 -> 129967.85 | P58: =((P55/2)+P56)*1.16 -> 91181.075 | Q58: 69267.225
L59: Valor segunda cuota : | N59: =N55/2*1.16 -> 178229.65 | O59: =O55/2*1.16 -> 128880.35 | P59: =P55/2*1.16 -> 90093.575 | Q59: 68179.725
L60: =L48 -> Costo total, (-15% de descuento) | N60: =N58+N59 -> 357546.8 | O60: =O58+O59 -> 258848.2 | P60: =P58+P59 -> 181274.65 | Q60: =Q58+Q59 -> 137446.95
L62: TARIFAS TRIMESTRALES
L63: Prima del asegurado titular : | N63: =N41*(1+Tablas!$K$3) -> 153646.25 | O63: =O41*(1+Tablas!$K$3) -> 111103.75 | P63: =P41*(1+Tablas!$K$3) -> 77666.875 | Q63: =Q41*(1+Tablas!$K$3) -> 58775.625
L64: Prima del (de la) cónyuge: | N64: =N42*(1+Tablas!$K$3) -> 153646.25 | O64: =O42*(1+Tablas!$K$3) -> 111103.75 | P64: =P42*(1+Tablas!$K$3) -> 77666.875 | Q64: =Q42*(1+Tablas!$K$3) -> 58775.625
L65: Prima del (de los) Hijo (s) : | N65: =N43*(1+Tablas!$K$3) -> 0 | O65: =O43*(1+Tablas!$K$3) -> 0 | P65: =P43*(1+Tablas!$K$3) -> 0 | Q65: =Q43*(1+Tablas!$K$3) -> 0
L66: Total otros dependientes | N66: =N44*(1+Tablas!$K$3) -> 0 | O66: =O44*(1+Tablas!$K$3) -> 0 | P66: =P44*(1+Tablas!$K$3) -> 0 | Q66: =Q44*(1+Tablas!$K$3) -> 0
L67: TOTAL PRIMA NETA : | N67: =SUM(N63:N66) -> 307292.5 | O67: =SUM(O63:O66) -> 222207.5 | P67: 155333.75 | Q67: 117551.25
L68: Costo administrativo anual : | N68: 937.5 | O68: 937.5 | P68: 937.5 | Q68: 937.5
L69: IVA (16%) : | N69: =SUM(N67:N68)*16% -> 49316.8 | O69: =SUM(O67:O68)*16% -> 35703.2 | P69: 25003.4 | Q69: 18958.2
L70: TOTAL primera cuota : | N70: =((N67/4)+N68)*1.16 -> 90202.325 | O70: =((O67/4)+O68)*1.16 -> 65527.675 | P70: 46134.2875 | Q70: 35177.3625
L71: Valor cuota trimestral 2 a 4: | N71: =N67/4*1.16 -> 89114.825 | O71: =O67/4*1.16 -> 64440.175 | P71: 45046.7875 | Q71: 34089.8625
L72: =L60 -> Costo total, (-15% de descuento) | N72: =N70+(N71*3) -> 357546.8 | O72: =O70+(O71*3) -> 258848.2 | P72: =P70+(P71*3) -> 181274.65 | Q72: =Q70+(Q71*3) -> 137446.95
L74: TARIFAS MENSUALES
L75: Prima del asegurado titular : | N75: =N41*(1+Tablas!$K$2) -> 167474.4125 | O75: =O41*(1+Tablas!$K$2) -> 121103.0875 | P75: =P41*(1+Tablas!$K$2) -> 84656.89375 | Q75: =Q41*(1+Tablas!$K$2) -> 64065.43125
L76: Prima del (de la) cónyuge: | N76: =N42*(1+Tablas!$K$2) -> 167474.4125 | O76: =O42*(1+Tablas!$K$2) -> 121103.0875 | P76: =P42*(1+Tablas!$K$2) -> 84656.89375 | Q76: =Q42*(1+Tablas!$K$2) -> 64065.43125
B77: Tarifas validas a partir del 1 de marzo al 31 de diciembre del 2025 | L77: Prima del (de los) Hijo (s) : | N77: =N43*(1+Tablas!$K$2) -> 0 | O77: =O43*(1+Tablas!$K$2) -> 0 | P77: =P43*(1+Tablas!$K$2) -> 0 | Q77: =Q43*(1+Tablas!$K$2) -> 0
B78: Promociones válidas al 31 de diciembre de 2025 | L78: Total otros dependientes | N78: =N44*(1+Tablas!$K$2) -> 0 | O78: =O44*(1+Tablas!$K$2) -> 0 | P78: =P44*(1+Tablas!$K$2) -> 0 | Q78: =Q44*(1+Tablas!$K$2) -> 0
B79: El 10% de descuento en productos Globales sobre prima neta será aplicable durante toda la vida de la póliza, siempre y cuando el asegurado no haga cambios en el plan y deducibles contratados. | L79: TOTAL PRIMA NETA : | N79: =SUM(N75:N78) -> 334948.825 | O79: =SUM(O75:O78) -> 242206.175 | P79: 169313.7875 | Q79: =SUM(Q75:Q78) -> 128130.8625
B80: En caso de que el asegurado elija la promoción “Sin costo por pago fraccionado” no podrá optar por la promoción a meses sin intereses. | L80: Costo administrativo anual : | N80: 937.5 | O80: 937.5 | P80: 937.5 | Q80: 937.5
B81: Las pólizas contratadas cuentan con limitaciones y exclusiones las cuáles pueden ser consultadas en www.bupasalud.com.mx Para más información, llámanos al 55 5202-1701 ext 4 o envíanos un correo a: ventasdirectas@bupa.com.mx | L81: IVA (16%) : | N81: =SUM(N79:N80)*16% -> 53741.812 | O81: =SUM(O79:O80)*16% -> 38902.988 | P81: 27240.206 | Q81: 20650.938
B82: La presente cotización es de carácter informativo, no constituye una solicitud de seguro y/o el monto de la prima definitiva y/o las condiciones de la misma y/o una oferta de aseguramiento en términos del artículo 5to de la Ley Sobre el Contrato de Seguro. La emisión de la póliza asícomo posibles cambios en la tarifa están sujetos a valoración del riesgo de acuerdo con las políticas de Suscripción de Bupa México y es susceptible de modificaciones, por lo que Bupa podrá aceptar o negar el aseguramiento del riesgo propuesto. | L82: TOTAL primera cuota : | N82: =((N79/12)+N80)*1.16 -> 33465.88642 | O82: =((O79/12)+O80)*1.16 -> 24500.76358 | P82: 17454.49946 | Q82: 13473.48337
L83: Valor cuota mensual 2 a 12 : | N83: =N79/12*1.16 -> 32378.38642 | O83: =O79/12*1.16 -> 23413.26358 | P83: 16366.99946 | Q83: 12385.98337
L84: =L72 -> Costo total, (-15% de descuento) | N84: =N82+(N83*11) -> 389628.137 | O84: =O82+(O83*11) -> 282046.663 | P84: =P82+(P83*11) -> 197491.4935 | Q84: =Q82+(Q83*11) -> 149719.3005

Sheet Global Select PE Health Plan
M32: FALSE
B33: Nombre del asegurado titular : | C33: =+'INGRESO DE DATOS'!$D$15 -> JUAN VIDAL | K33: Deducibles | M33: PLAN A | N33: PLAN 1 | O33: PLAN 2 | P33: PLAN 3 | Q33: PLAN 4
K34: Dentro del país de residencia | M34: 2000 | N34: 3500 | O34: 5000 | P34: 10000 | Q34: 20000
B35: Agencia / Agente : | C35: =+'INGRESO DE DATOS'!$D$31 -> Nombre del Agente | K35: Fuera del país de residencia | M35: 2000 | N35: 3500 | O35: 5000 | P35: 10000 | Q35: 20000
K37: TARIFAS ANUALES
B38: Número de adultos en la póliza : | C38: =+'INGRESO DE DATOS'!$D$17 -> 2 | F38: Edad del asegurado titular : | G38: =+'INGRESO DE DATOS'!$D$19 -> 30 | H38: =VLOOKUP($C$38,Tablas!A1503:B1504,2,0) -> 625 | K38: Prima del asegurado titular : | M38: =(VLOOKUP($G$38,Tablas!$A$1512:$G$1578,3,TRUE))+(Tablas!$Q$2) -> 68225 | N38: =(VLOOKUP($G$38,Tablas!$A$1512:$G$1578,4,TRUE))+(Tablas!$Q$2) -> 57737.5 | O38: =(VLOOKUP($G$38,Tablas!$A$1512:$G$1578,5,TRUE))+(Tablas!$Q$2) -> 51100 | P38: =(VLOOKUP($G$38,Tablas!$A$1512:$G$1578,6,TRUE))+(Tablas!$Q$2) -> 34300 | Q38: =(VLOOKUP($G$38,Tablas!$A$1512:$G$1578,7,TRUE))+(Tablas!$Q$2) -> 27150
K39: Prima del (de la) cónyuge: | M39: =(IF($C$38=1,0,(VLOOKUP($G$40,Tablas!$A$1512:$G$1578,3,TRUE))))+(IF($C$38=1,0,(Tablas!$Q$2))) -> 68225 | N39: =(IF($C$38=1,0,(VLOOKUP($G$40,Tablas!$A$1512:$G$1578,4,TRUE))))+(IF($C$38=1,0,(Tablas!$Q$2))) -> 57737.5 | O39: =(IF($C$38=1,0,(VLOOKUP($G$40,Tablas!$A$1512:$G$1578,5,TRUE))))+(IF($C$38=1,0,(Tablas!$Q$2))) -> 51100 | P39: =(IF($C$38=1,0,(VLOOKUP($G$40,Tablas!$A$1512:$G$1578,6,TRUE))))+(IF($C$38=1,0,(Tablas!$Q$2))) -> 34300 | Q39: =(IF($C$38=1,0,(VLOOKUP($G$40,Tablas!$A$1512:$G$1578,7,TRUE))))+(IF($C$38=1,0,(Tablas!$Q$2))) -> 27150
B40: Número de hijos en la póliza : | C40: =+'INGRESO DE DATOS'!$H$17 -> 0 | F40: Edad del (de la) cónyuge : | G40: =+'INGRESO DE DATOS'!$H$19 -> 30 | K40: Prima del (de los) Hijo (s) : | M40: =(IF($C$40=0,0,(VLOOKUP($C$40,Tablas!$A$1579:$G$1581,3,TRUE)))) -> 0 | N40: =(IF($C$40=0,0,(VLOOKUP($C$40,Tablas!$A$1579:$G$1581,4,TRUE)))) -> 0 | O40: =(IF($C$40=0,0,(VLOOKUP($C$40,Tablas!$A$1579:$G$1581,5,TRUE)))) -> 0 | P40: =(IF($C$40=0,0,(VLOOKUP($C$40,Tablas!$A$1579:$G$1581,6,TRUE)))) -> 0 | Q40: =(IF($C$40=0,0,(VLOOKUP($C$40,Tablas!$A$1579:$G$1581,7,TRUE)))) -> 0
K41: Total otros dependientes | M41: =Tablas!Q1513 -> 0 | N41: =Tablas!R1513 -> 0 | O41: =Tablas!S1513 -> 0 | P41: =Tablas!T1513 -> 0 | Q41: =Tablas!U1513 -> 0
B42: FECHA DE COTIZACION : | D42: =NOW() -> 2025-06-25T13:21:39.390 | K42: TOTAL PRIMA NETA : | M42: =SUM(M38:M41) -> 136450 | N42: =SUM(N38:N41) -> 115475 | O42: 102200 | P42: 68600 | Q42: 54300
K43: Costo administrativo anual : | M43: 937.5 | N43: 937.5 | O43: 937.5 | P43: 937.5 | Q43: 937.5
K44: IVA (16%) : | M44: =SUM(M42:M43)*16% -> 21982 | N44: =SUM(N42:N43)*16% -> 18626 | O44: 16502 | P44: =SUM(P42:P43)*16% -> 11126 | Q44: 8838
K45: Gran total anual | M45: =SUM(M42:M44) -> 159369.5 | N45: =SUM(N42:N44) -> 135038.5 | O45: 119639.5 | P45: 80663.5 | Q45: 64075.5
K47: TARIFAS SEMESTRALES
K48: Prima del asegurado titular : | M48: =M38*(1+Tablas!$K$4) -> 68225 | N48: =N38*(1+Tablas!$K$4) -> 57737.5 | O48: =O38*(1+Tablas!$K$4) -> 51100 | P48: =P38*(1+Tablas!$K$4) -> 34300 | Q48: =Q38*(1+Tablas!$K$4) -> 27150
K49: Prima del (de la) cónyuge: | M49: =M39*(1+Tablas!$K$4) -> 68225 | N49: =N39*(1+Tablas!$K$4) -> 57737.5 | O49: =O39*(1+Tablas!$K$4) -> 51100 | P49: =P39*(1+Tablas!$K$4) -> 34300 | Q49: =Q39*(1+Tablas!$K$4) -> 27150
K50: Prima del (de los) Hijo (s) : | M50: =M40*(1+Tablas!$K$4) -> 0 | N50: =N40*(1+Tablas!$K$4) -> 0 | O50: =O40*(1+Tablas!$K$4) -> 0 | P50: =P40*(1+Tablas!$K$4) -> 0 | Q50: =Q40*(1+Tablas!$K$4) -> 0
K51: Total otros dependientes | M51: =M41*(1+Tablas!$K$4) -> 0 | N51: =N41*(1+Tablas!$K$4) -> 0 | O51: =O41*(1+Tablas!$K$4) -> 0 | P51: =P41*(1+Tablas!$K$4) -> 0 | Q51: =Q41*(1+Tablas!$K$4) -> 0
K52: TOTAL PRIMA NETA : | M52: =SUM(M48:M51) -> 136450 | N52: =SUM(N48:N51) -> 115475 | O52: 102200 | P52: 68600 | Q52: 54300
K53: Costo administrativo anual : | M53: 937.5 | N53: 937.5 | O53: 937.5 | P53: 937.5 | Q53: 937.5
K54: IVA (16%) : | M54: =SUM(M52:M53)*16% -> 21982 | N54: =SUM(N52:N53)*16% -> 18626 | O54: 16502 | P54: =SUM(P52:P53)*16% -> 11126 | Q54: 8838
K55: TOTAL primera cuota : | M55: =((M52/2)+M53)*1.16 -> 80228.5 | N55: =((N52/2)+N53)*1.16 -> 68063 | O55: 60363.5 | P55: 40875.5 | Q55: 32581.5
K56: Valor segunda cuota : | M56: =M52/2*1.16 -> 79141 | N56: =N52/2*1.16 -> 66975.5 | O56: 59276 | P56: 39788 | Q56: 31494
K57: =K45 -> Gran total anual | M57: =+M55+M56 -> 159369.5 | N57: =+N55+N56 -> 135038.5 | O57: 119639.5 | P57: 80663.5 | Q57: 64075.5
K59: TARIFAS TRIMESTRALES
K60: Prima del asegurado titular : | M60: =M38*(1+Tablas!$K$3) -> 68225 | N60: =N38*(1+Tablas!$K$3) -> 57737.5 | O60: =O38*(1+Tablas!$K$3) -> 51100 | P60: =P38*(1+Tablas!$K$3) -> 34300 | Q60: =Q38*(1+Tablas!$K$3) -> 27150
K61: Prima del (de la) cónyuge: | M61: =M39*(1+Tablas!$K$3) -> 68225 | N61: =N39*(1+Tablas!$K$3) -> 57737.5 | O61: =O39*(1+Tablas!$K$3) -> 51100 | P61: =P39*(1+Tablas!$K$3) -> 34300 | Q61: =Q39*(1+Tablas!$K$3) -> 27150
K62: Prima del (de los) Hijo (s) : | M62: =M40*(1+Tablas!$K$3) -> 0 | N62: =N40*(1+Tablas!$K$3) -> 0 | O62: =O40*(1+Tablas!$K$3) -> 0 | P62: =P40*(1+Tablas!$K$3) -> 0 | Q62: =Q40*(1+Tablas!$K$3) -> 0
K63: Total otros dependientes | M63: =M41*(1+Tablas!$K$3) -> 0 | N63: =N41*(1+Tablas!$K$3) -> 0 | O63: =O41*(1+Tablas!$K$3) -> 0 | P63: =P41*(1+Tablas!$K$3) -> 0 | Q63: =Q41*(1+Tablas!$K$3) -> 0
K64: TOTAL PRIMA NETA : | M64: =SUM(M60:M63) -> 136450 | N64: =SUM(N60:N63) -> 115475 | O64: 102200 | P64: 68600 | Q64: 54300
K65: Costo administrativo anual : | M65: 937.5 | N65: 937.5 | O65: 937.5 | P65: 937.5 | Q65: 937.5
K66: IVA (16%) : | M66: =SUM(M64:M65)*16% -> 21982 | N66: =SUM(N64:N65)*16% -> 18626 | O66: 16502 | P66: =SUM(P64:P65)*16% -> 11126 | Q66: 8838
K67: TOTAL primera cuota : | M67: =((M64/4)+M65)*1.16 -> 40658 | N67: =((N64/4)+N65)*1.16 -> 34575.25 | O67: 30725.5 | P67: 20981.5 | Q67: 16834.5
K68: Valor cuota trimestral 2 a 4: | M68: =M64/4*1.16 -> 39570.5 | N68: =N64/4*1.16 -> 33487.75 | O68: 29638 | P68: 19894 | Q68: 15747
B69: Este plan cuenta con los siguientes periodos de espera adicionales: | K69: =K57 -> Gran total anual | M69: =M67+(M68*3) -> 159369.5 | N69: =N67+(N68*3) -> 135038.5 | O69: =O67+(O68*3) -> 119639.5 | P69: =P67+(P68*3) -> 80663.5 | Q69: 64075.5
B70: PERÍODOS DE ESPERA
B71: Padecimientos de rodilla, ácido-pépticos, columna vertebral, nariz, senos paranasales, amígdalas, adenoides, hemorroides, hernias, tumoraciones mamarias (benignas y/o malignas), padecimientos anorrectales, prostáticos, ginecológicos, várices, insuficiencia del piso perineal, padecimientos de la vesícula y vías biliares, enfermedades articulares de las falanges de los pies, cataratas, litiasis renal y en vías urinarias. | I71: 6 meses | K71: TARIFAS MENSUALES
B72: Tratamiento contra el Cáncer. | I72: 6 meses | K72: Prima del asegurado titular : | M72: =M38*(1+Tablas!$K$2) -> 74365.25 | N72: =N38*(1+Tablas!$K$2) -> 62933.875 | O72: =O38*(1+Tablas!$K$2) -> 55699 | P72: =P38*(1+Tablas!$K$2) -> 37387 | Q72: =Q38*(1+Tablas!$K$2) -> 29593.5
B73: Examen dental preventivo. | I73: 10 meses | K73: Prima del (de la) cónyuge: | M73: =M39*(1+Tablas!$K$2) -> 74365.25 | N73: =N39*(1+Tablas!$K$2) -> 62933.875 | O73: =O39*(1+Tablas!$K$2) -> 55699 | P73: =P39*(1+Tablas!$K$2) -> 37387 | Q73: =Q39*(1+Tablas!$K$2) -> 29593.5
B74: Trasplantes. | I74: 6 meses | K74: Prima del (de los) Hijo (s) : | M74: =M40*(1+Tablas!$K$2) -> 0 | N74: =N40*(1+Tablas!$K$2) -> 0 | O74: =O40*(1+Tablas!$K$2) -> 0 | P74: =P40*(1+Tablas!$K$2) -> 0 | Q74: =Q40*(1+Tablas!$K$2) -> 0
B75: Tarifas validas a partir del 1 de marzo al 31 de diciembre del 2025 | K75: Total otros dependientes | M75: =M41*(1+Tablas!$K$2) -> 0 | N75: =N41*(1+Tablas!$K$2) -> 0 | O75: =O41*(1+Tablas!$K$2) -> 0 | P75: =P41*(1+Tablas!$K$2) -> 0 | Q75: =Q41*(1+Tablas!$K$2) -> 0
B76: Promociones válidas al 31 de diciembre de 2025 | K76: TOTAL PRIMA NETA : | M76: =SUM(M72:M75) -> 148730.5 | N76: =SUM(N72:N75) -> 125867.75 | O76: 111398 | P76: 74774 | Q76: =SUM(Q72:Q75) -> 59187
B77: El 10% de descuento en productos Globales sobre prima neta será aplicable durante toda la vida de la póliza, siempre y cuando el asegurado no haga cambios en el plan y deducibles contratados. | K77: Costo administrativo anual : | M77: 937.5 | N77: 937.5 | O77: 937.5 | P77: 937.5 | Q77: 937.5
B78: En caso de que el asegurado elija la promoción “Sin costo por pago fraccionado” no podrá optar por la promoción a meses sin intereses. | K78: IVA (16%) : | M78: =SUM(M76:M77)*16% -> 23946.88 | N78: =SUM(N76:N77)*16% -> 20288.84 | O78: =SUM(O76:O77)*16% -> 17973.68 | P78: =SUM(P76:P77)*16% -> 12113.84 | Q78: =SUM(Q76:Q77)*16% -> 9619.92
B79: Las pólizas contratadas cuentan con limitaciones y exclusiones las cuáles pueden ser consultadas en www.bupasalud.com.mx Para más información, llámanos al 55 5202-1701 ext 4 o envíanos un correo a: ventasdirectas@bupa.com.mx | K79: TOTAL primera cuota : | M79: =((M76/12)+M77)*1.16 -> 15464.78167 | N79: =((N76/12)+N77)*1.16 -> 13254.71583 | O79: =((O76/12)+O77)*1.16 -> 11855.97333 | P79: =((P76/12)+P77)*1.16 -> 8315.653333 | Q79: =((Q76/12)+Q77)*1.16 -> 6808.91
B80: La presente cotización es de carácter informativo, no constituye una solicitud de seguro y/o el monto de la prima definitiva y/o las condiciones de la misma y/o una oferta de aseguramiento en términos del artículo 5to de la Ley Sobre el Contrato de Seguro. La emisión de la póliza asícomo posibles cambios en la tarifa están sujetos a valoración del riesgo de acuerdo con las políticas de Suscripción de Bupa México y es susceptible de modificaciones, por lo que Bupa podrá aceptar o negar el aseguramiento del riesgo propuesto. | K80: Valor cuota mensual 2 a 12 : | M80: =M76/12*1.16 -> 14377.28167 | N80: =N76/12*1.16 -> 12167.21583 | O80: =O76/12*1.16 -> 10768.47333 | P80: =P76/12*1.16 -> 7228.153333 | Q80: =Q76/12*1.16 -> 5721.41
K81: =K69 -> Gran total anual | M81: =M79+(M80*11) -> 173614.88 | N81: =N79+(N80*11) -> 147094.09 | O81: =O79+(O80*11) -> 130309.18 | P81: =P79+(P80*11) -> 87825.34 | Q81: 69744.42

Sheet Global Elite Health Plan
B26: Nombre del asegurado titular : | C26: =+'INGRESO DE DATOS'!$D$15 -> JUAN VIDAL | K26: Deducibles | M26: PLAN 1 | N26: PLAN 2 | O26: PLAN 3 | P26: PLAN 4 | Q26: PLAN 5
K27: Dentro del país de residencia | M27: 1000 | N27: 2000 | O27: 3500 | P27: 5000 | Q27: 10000
B28: Agencia / Agente : | C28: =+'INGRESO DE DATOS'!$D$31 -> Nombre del Agente | K28: Fuera del país de residencia | M28: 1000 | N28: 2000 | O28: 3500 | P28: 5000 | Q28: 10000
B30: Número de adultos en la póliza : | D30: =+'INGRESO DE DATOS'!$D$17 -> 2 | E30: Edad del asegurado titular : | G30: =+'INGRESO DE DATOS'!$D$19 -> 30 | I30: =VLOOKUP($D$30,Tablas!A1503:B1504,2,0) -> 625 | K30: TARIFAS ANUALES
K31: Prima del asegurado titular : | M31: =(VLOOKUP($G$30,Tablas!$A$6:$G$72,3,TRUE))*'INGRESO DE DATOS'!$D$26+(Tablas!$Q$2) -> 236404.375 | N31: =(VLOOKUP($G$30,Tablas!$A$6:$G$72,4,TRUE))*'INGRESO DE DATOS'!$D$26+(Tablas!$Q$2) -> 168840 | O31: =(VLOOKUP($G$30,Tablas!$A$6:$G$72,5,TRUE))*'INGRESO DE DATOS'!$D$26+(Tablas!$Q$2) -> 134128.125 | P31: =(VLOOKUP($G$30,Tablas!$A$6:$G$72,6,TRUE))*'INGRESO DE DATOS'!$D$26+(Tablas!$Q$2) -> 115757.5 | Q31: =(VLOOKUP($G$30,Tablas!$A$6:$G$72,7,TRUE))*'INGRESO DE DATOS'!$D$26+(Tablas!$Q$2) -> 87080.625
B32: Número de hijos en la póliza : | D32: =+'INGRESO DE DATOS'!$H$17 -> 0 | E32: Edad del (de la) cónyuge : | G32: =+'INGRESO DE DATOS'!$H$19 -> 30 | K32: Prima del (de la) cónyuge: | M32: =(IF($D$30=1,0,(VLOOKUP($G$32,Tablas!$A$6:$G$72,3,TRUE))))*'INGRESO DE DATOS'!$D$26+(IF($D$30=1,0,(Tablas!$Q$2))) -> 236404.375 | N32: =(IF($D$30=1,0,(VLOOKUP($G$32,Tablas!$A$6:$G$72,4,TRUE))))*'INGRESO DE DATOS'!$D$26+(IF($D$30=1,0,(Tablas!$Q$2))) -> 168840 | O32: =(IF($D$30=1,0,(VLOOKUP($G$32,Tablas!$A$6:$G$72,5,TRUE))))*'INGRESO DE DATOS'!$D$26+(IF($D$30=1,0,(Tablas!$Q$2))) -> 134128.125 | P32: =(IF($D$30=1,0,(VLOOKUP($G$32,Tablas!$A$6:$G$72,6,TRUE))))*'INGRESO DE DATOS'!$D$26+(IF($D$30=1,0,(Tablas!$Q$2))) -> 115757.5 | Q32: =(IF($D$30=1,0,(VLOOKUP($G$32,Tablas!$A$6:$G$72,7,TRUE))))*'INGRESO DE DATOS'!$D$26+(IF($D$30=1,0,(Tablas!$Q$2))) -> 87080.625
K33: Prima del (de los) Hijo(s) : | M33: =IF($D$32=0,0,(VLOOKUP($D$32,Tablas!$A$73:$G$75,3,TRUE)))*'INGRESO DE DATOS'!$D$26 -> 0 | N33: =IF($D$32=0,0,(VLOOKUP($D$32,Tablas!$A$73:$G$75,4,TRUE)))*'INGRESO DE DATOS'!$D$26 -> 0 | O33: =IF($D$32=0,0,(VLOOKUP($D$32,Tablas!$A$73:$G$75,5,TRUE)))*'INGRESO DE DATOS'!$D$26 -> 0 | P33: =IF($D$32=0,0,(VLOOKUP($D$32,Tablas!$A$73:$G$75,6,TRUE)))*'INGRESO DE DATOS'!$D$26 -> 0 | Q33: =IF($D$32=0,0,(VLOOKUP($D$32,Tablas!$A$73:$G$75,7,TRUE)))*'INGRESO DE DATOS'!$D$26 -> 0
B34: FECHA DE COTIZACION : | D34: =NOW() -> 2025-06-25T13:21:39.390 | F34: FALSE | K34: Total otros dependientes | M34: =Tablas!Q7*'INGRESO DE DATOS'!$D$26 -> 0 | N34: =Tablas!R7*'INGRESO DE DATOS'!$D$26 -> 0 | O34: =Tablas!S7*'INGRESO DE DATOS'!$D$26 -> 0 | P34: =Tablas!T7*'INGRESO DE DATOS'!$D$26 -> 0 | Q34: =Tablas!U7*'INGRESO DE DATOS'!$D$26 -> 0
K35: TOTAL PRIMA NETA : | M35: =SUM(M31:M34) -> 472808.75 | N35: =SUM(N31:N34) -> 337680 | O35: 268256.25 | P35: 231515 | Q35: 174161.25
K36: Costo administrativo anual : | M36: 937.5 | N36: 937.5 | O36: 937.5 | P36: 937.5 | Q36: 937.5
K37: IVA (16%) : | M37: =SUM(M35:M36)*16% -> 75799.4 | N37: =SUM(N35:N36)*16% -> 54178.8 | O37: =SUM(O35:O36)*16% -> 43071 | P37: 37192.4 | Q37: 28015.8
K38: =IF('INGRESO DE DATOS'!$D$26=0.95,"Costo total, (-5% de descuento)",IF('INGRESO DE DATOS'!$D$26=0.85,"Costo total, (-15% de descuento)",IF('INGRESO DE DATOS'!$D$26=0.9,"Costo total, (-10% de descuento)","Gran total anual"))) -> Costo total, (-15% de descuento) | M38: =SUM(M35:M37) -> 549545.65 | N38: =SUM(N35:N37) -> 392796.3 | O38: =SUM(O35:O37) -> 312264.75 | P38: 269644.9 | Q38: 203114.55
K40: TARIFAS SEMESTRALES
K41: Prima del asegurado titular : | M41: =M31*(1+Tablas!$K$4) -> 236404.375 | N41: =N31*(1+Tablas!$K$4) -> 168840 | O41: =O31*(1+Tablas!$K$4) -> 134128.125 | P41: =P31*(1+Tablas!$K$4) -> 115757.5 | Q41: =Q31*(1+Tablas!$K$4) -> 87080.625
K42: Prima del (de la) cónyuge: | M42: =M32*(1+Tablas!$K$4) -> 236404.375 | N42: =N32*(1+Tablas!$K$4) -> 168840 | O42: =O32*(1+Tablas!$K$4) -> 134128.125 | P42: =P32*(1+Tablas!$K$4) -> 115757.5 | Q42: =Q32*(1+Tablas!$K$4) -> 87080.625
K43: Prima del (de los) Hijo (s) : | M43: =M33*(1+Tablas!$K$4) -> 0 | N43: =N33*(1+Tablas!$K$4) -> 0 | O43: =O33*(1+Tablas!$K$4) -> 0 | P43: =P33*(1+Tablas!$K$4) -> 0 | Q43: =Q33*(1+Tablas!$K$4) -> 0
K44: Total otros dependientes | M44: =M34*(1+Tablas!$K$4) -> 0 | N44: =N34*(1+Tablas!$K$4) -> 0 | O44: =O34*(1+Tablas!$K$4) -> 0 | P44: =P34*(1+Tablas!$K$4) -> 0 | Q44: =Q34*(1+Tablas!$K$4) -> 0
K45: TOTAL PRIMA NETA : | M45: =SUM(M41:M44) -> 472808.75 | N45: =SUM(N41:N44) -> 337680 | O45: 268256.25 | P45: 231515 | Q45: =SUM(Q41:Q44) -> 174161.25
K46: Costo administrativo anual : | M46: 937.5 | N46: 937.5 | O46: 937.5 | P46: 937.5 | Q46: 937.5
K47: IVA (16%) : | M47: =SUM(M45:M46)*16% -> 75799.4 | N47: =SUM(N45:N46)*16% -> 54178.8 | O47: 43071 | P47: 37192.4 | Q47: 28015.8
K48: TOTAL primera cuota : | M48: =((M45/2)+M46)*1.16 -> 275316.575 | N48: =((N45/2)+N46)*1.16 -> 196941.9 | O48: 156676.125 | P48: 135366.2 | Q48: 102101.025
K49: Valor segunda cuota : | M49: =M45/2*1.16 -> 274229.075 | N49: =N45/2*1.16 -> 195854.4 | O49: 155588.625 | P49: 134278.7 | Q49: 101013.525
K50: =K38 -> Costo total, (-15% de descuento) | M50: =M48+M49 -> 549545.65 | N50: =N48+N49 -> 392796.3 | O50: 312264.75 | P50: =P48+P49 -> 269644.9 | Q50: 203114.55
K52: TARIFAS TRIMESTRALES
K53: Prima del asegurado titular : | M53: =M31*(1+Tablas!$K$3) -> 236404.375 | N53: =N31*(1+Tablas!$K$3) -> 168840 | O53: =O31*(1+Tablas!$K$3) -> 134128.125 | P53: =P31*(1+Tablas!$K$3) -> 115757.5 | Q53: =Q31*(1+Tablas!$K$3) -> 87080.625
K54: Prima del (de la) cónyuge: | M54: =M32*(1+Tablas!$K$3) -> 236404.375 | N54: =N32*(1+Tablas!$K$3) -> 168840 | O54: =O32*(1+Tablas!$K$3) -> 134128.125 | P54: =P32*(1+Tablas!$K$3) -> 115757.5 | Q54: =Q32*(1+Tablas!$K$3) -> 87080.625
K55: Prima del (de los) Hijo (s) : | M55: =M33*(1+Tablas!$K$3) -> 0 | N55: =N33*(1+Tablas!$K$3) -> 0 | O55: =O33*(1+Tablas!$K$3) -> 0 | P55: =P33*(1+Tablas!$K$3) -> 0 | Q55: =Q33*(1+Tablas!$K$3) -> 0
K56: Total otros dependientes | M56: =M34*(1+Tablas!$K$3) -> 0 | N56: =N34*(1+Tablas!$K$3) -> 0 | O56: =O34*(1+Tablas!$K$3) -> 0 | P56: =P34*(1+Tablas!$K$3) -> 0 | Q56: =Q34*(1+Tablas!$K$3) -> 0
K57: TOTAL PRIMA NETA : | M57: =SUM(M53:M56) -> 472808.75 | N57: =SUM(N53:N56) -> 337680 | O57: 268256.25 | P57: 231515 | Q57: 174161.25
K58: Costo administrativo anual : | M58: 937.5 | N58: 937.5 | O58: 937.5 | P58: 937.5 | Q58: 937.5
K59: IVA (16%) : | M59: =SUM(M57:M58)*16% -> 75799.4 | N59: =SUM(N57:N58)*16% -> 54178.8 | O59: 43071 | P59: 37192.4 | Q59: 28015.8
K60: TOTAL primera cuota : | M60: =((M57/4)+M58)*1.16 -> 138202.0375 | N60: =((N57/4)+N58)*1.16 -> 99014.7 | O60: 78881.8125 | P60: 68226.85 | Q60: 51594.2625
K61: Valor cuota trimestral 2 a 4: | M61: =M57/4*1.16 -> 137114.5375 | N61: =N57/4*1.16 -> 97927.2 | O61: 77794.3125 | P61: 67139.35 | Q61: 50506.7625
K62: =K50 -> Costo total, (-15% de descuento) | M62: =M60+(M61*3) -> 549545.65 | N62: =N60+(N61*3) -> 392796.3 | O62: 312264.75 | P62: 269644.9 | Q62: 203114.55
K64: TARIFAS MENSUALES
K65: Prima del asegurado titular : | M65: =M31*(1+Tablas!$K$2) -> 257680.7688 | N65: =N31*(1+Tablas!$K$2) -> 184035.6 | O65: =O31*(1+Tablas!$K$2) -> 146199.6562 | P65: =P31*(1+Tablas!$K$2) -> 126175.675 | Q65: =Q31*(1+Tablas!$K$2) -> 94917.88125
B66: Tarifas validas a partir del 1 de marzo al 31 de diciembre del 2025 | K66: Prima del (de la) cónyuge: | M66: =M32*(1+Tablas!$K$2) -> 257680.7688 | N66: =N32*(1+Tablas!$K$2) -> 184035.6 | O66: =O32*(1+Tablas!$K$2) -> 146199.6562 | P66: =P32*(1+Tablas!$K$2) -> 126175.675 | Q66: =Q32*(1+Tablas!$K$2) -> 94917.88125
B67: Promociones válidas al 31 de diciembre de 2025 | K67: Prima del (de los) Hijo (s) : | M67: =M33*(1+Tablas!$K$2) -> 0 | N67: =N33*(1+Tablas!$K$2) -> 0 | O67: =O33*(1+Tablas!$K$2) -> 0 | P67: =P33*(1+Tablas!$K$2) -> 0 | Q67: =Q33*(1+Tablas!$K$2) -> 0
B68: El 10% de descuento en productos Globales sobre prima neta será aplicable durante toda la vida de la póliza, siempre y cuando el asegurado no haga cambios en el plan y deducibles contratados. | K68: Total otros dependientes | M68: =M34*(1+Tablas!$K$2) -> 0 | N68: =N34*(1+Tablas!$K$2) -> 0 | O68: =O34*(1+Tablas!$K$2) -> 0 | P68: =P34*(1+Tablas!$K$2) -> 0 | Q68: =Q34*(1+Tablas!$K$2) -> 0
B69: En caso de que el asegurado elija la promoción “Sin costo por pago fraccionado” no podrá optar por la promoción a meses sin intereses. | K69: TOTAL PRIMA NETA : | M69: =SUM(M65:M68) -> 515361.5375 | N69: =SUM(N65:N68) -> 368071.2 | O69: 292399.3125 | P69: 252351.35 | Q69: =SUM(Q65:Q68) -> 189835.7625
B70: Las pólizas contratadas cuentan con limitaciones y exclusiones las cuáles pueden ser consultadas en www.bupasalud.com.mx Para más información, llámanos al 55 5202-1701 ext 4 o envíanos un correo a: ventasdirectas@bupa.com.mx | K70: Costo administrativo anual : | M70: 937.5 | N70: 937.5 | O70: 937.5 | P70: 937.5 | Q70: 937.5
B71: La presente cotización es de carácter informativo, no constituye una solicitud de seguro y/o el monto de la prima definitiva y/o las condiciones de la misma y/o una oferta de aseguramiento en términos del artículo 5to de la Ley Sobre el Contrato de Seguro. La emisión de la póliza asícomo posibles cambios en la tarifa están sujetos a valoración del riesgo de acuerdo con las políticas de Suscripción de Bupa México y es susceptible de modificaciones, por lo que Bupa podrá aceptar o negar el aseguramiento del riesgo propuesto. | K71: IVA (16%) : | M71: =SUM(M69:M70)*16% -> 82607.846 | N71: =SUM(N69:N70)*16% -> 59041.392 | O71: 46933.89 | P71: 40526.216 | Q71: 30523.722
K72: TOTAL primera cuota : | M72: =((M69/12)+M70)*1.16 -> 50905.78196 | N72: =((N69/12)+N70)*1.16 -> 36667.716 | O72: 29352.76687 | P72: 25481.46383 | Q72: 19438.29037
K73: Valor cuota mensual 2 a 12 : | M73: =M69/12*1.16 -> 49818.28196 | N73: =N69/12*1.16 -> 35580.216 | O73: 28265.26687 | P73: 24393.96383 | Q73: 18350.79038
K74: =K62 -> Costo total, (-15% de descuento) | M74: =M72+(M73*11) -> 598906.8835 | N74: =N72+(N73*11) -> 428050.092 | O74: =O72+(O73*11) -> 340270.7025 | P74: =P72+(P73*11) -> 293815.066 | Q74: =Q72+(Q73*11) -> 221296.9845

Sheet Global Ultimate Health Plan
N19: FALSE
B20: Nombre del asegurado titular : | C20: =+'INGRESO DE DATOS'!$D$15 -> JUAN VIDAL | L20: Deducibles | N20: PLAN 1 | O20: PLAN 2 | P20: PLAN 3
L21: Dentro del país de residencia | N21: 0 | O21: 1000 | P21: 2000
B22: Agencia / Agente : | C22: =+'INGRESO DE DATOS'!$D$31 -> Nombre del Agente | L22: Fuera del país de residencia | N22: 0 | O22: 1000 | P22: 2000
B24: Número de adultos en la póliza : | D24: =+'INGRESO DE DATOS'!$D$17 -> 2 | E24: Edad del asegurado titular : | G24: =+'INGRESO DE DATOS'!$D$19 -> 30 | H24: =VLOOKUP($D$24,Tablas!A1503:B1504,2,0) -> 625 | L24: TARIFAS ANUALES
L25: Prima del asegurado titular : | N25: =(VLOOKUP($G$24,Tablas!$A$1205:$G$1271,3,TRUE))*'INGRESO DE DATOS'!$D$26+(Tablas!$Q$2) -> 541798.75 | O25: =(VLOOKUP($G$24,Tablas!$A$1205:$G$1271,4,TRUE))*'INGRESO DE DATOS'!$D$26+(Tablas!$Q$2) -> 345321.25 | P25: =(VLOOKUP($G$24,Tablas!$A$1205:$G$1271,5,TRUE))*'INGRESO DE DATOS'!$D$26+(Tablas!$Q$2) -> 248272.5
B26: Número de hijos en la póliza : | D26: =+'INGRESO DE DATOS'!$H$17 -> 0 | E26: Edad del (de la) cónyuge : | G26: =+'INGRESO DE DATOS'!$H$19 -> 30 | L26: Prima del (de la) cónyuge: | N26: =(IF($D$24=1,0,(VLOOKUP($G$26,Tablas!$A$1205:$G$1271,3,TRUE))))*'INGRESO DE DATOS'!$D$26+(IF($D$24=1,0,(Tablas!$Q$2))) -> 541798.75 | O26: =(IF($D$24=1,0,(VLOOKUP($G$26,Tablas!$A$1205:$G$1271,4,TRUE))))*'INGRESO DE DATOS'!$D$26+(IF($D$24=1,0,(Tablas!$Q$2))) -> 345321.25 | P26: =(IF($D$24=1,0,(VLOOKUP($G$26,Tablas!$A$1205:$G$1271,5,TRUE))))*'INGRESO DE DATOS'!$D$26+(IF($D$24=1,0,(Tablas!$Q$2))) -> 248272.5
L27: Prima del (de los) Hijo (s) : | N27: =IF($D$26=0,0,(VLOOKUP($D$26,Tablas!$A$1272:$G$1274,3,TRUE)))*'INGRESO DE DATOS'!$D$26 -> 0 | O27: =IF($D$26=0,0,(VLOOKUP($D$26,Tablas!$A$1272:$G$1274,4,TRUE)))*'INGRESO DE DATOS'!$D$26 -> 0 | P27: =IF($D$26=0,0,(VLOOKUP($D$26,Tablas!$A$1272:$G$1274,5,TRUE)))*'INGRESO DE DATOS'!$D$26 -> 0
B28: FECHA DE COTIZACION : | D28: =NOW() -> 2025-06-25T13:21:39.390 | L28: Total otros dependientes | N28: =Tablas!Q1206*'INGRESO DE DATOS'!$D$26 -> 0 | O28: =Tablas!R1206*'INGRESO DE DATOS'!$D$26 -> 0 | P28: =Tablas!S1206*'INGRESO DE DATOS'!$D$26 -> 0
L29: TOTAL PRIMA NETA : | N29: =SUM(N25:N28) -> 1083597.5 | O29: =SUM(O25:O28) -> 690642.5 | P29: 496545
L30: Costo administrativo anual : | N30: 937.5 | O30: 937.5 | P30: 937.5
L31: IVA (16%) : | N31: =+N29*16% -> 173375.6 | O31: =+O29*16% -> 110502.8 | P31: =+P29*16% -> 79447.2
L32: =IF('INGRESO DE DATOS'!$D$26=0.95,"Costo total, (-5% de descuento)",IF('INGRESO DE DATOS'!$D$26=0.85,"Costo total, (-15% de descuento)",IF('INGRESO DE DATOS'!$D$26=0.9,"Costo total, (-10% de descuento)","Gran total anual"))) -> Costo total, (-15% de descuento) | N32: =SUM(N29:N31) + N30*0.16 -> 1258060.6 | O32: =SUM(O29:O31) + O30*0.16 -> 802232.8 | P32: 577079.7
L34: TARIFAS SEMESTRALES
L35: Prima del asegurado titular : | N35: =N25*(1+Tablas!$K$4) -> 541798.75 | O35: =O25*(1+Tablas!$K$4) -> 345321.25 | P35: =P25*(1+Tablas!$K$4) -> 248272.5
L36: Prima del (de la) cónyuge: | N36: =N26*(1+Tablas!$K$4) -> 541798.75 | O36: =O26*(1+Tablas!$K$4) -> 345321.25 | P36: =P26*(1+Tablas!$K$4) -> 248272.5
L37: Prima del (de los) Hijo (s) : | N37: =N27*(1+Tablas!$K$4) -> 0 | O37: =O27*(1+Tablas!$K$4) -> 0 | P37: =P27*(1+Tablas!$K$4) -> 0
L38: Total otros dependientes | N38: =N28*(1+Tablas!$K$4) -> 0 | O38: =O28*(1+Tablas!$K$4) -> 0 | P38: =P28*(1+Tablas!$K$4) -> 0
L39: TOTAL PRIMA NETA : | N39: =SUM(N35:N38) -> 1083597.5 | O39: =SUM(O35:O38) -> 690642.5 | P39: 496545
L40: Costo administrativo anual : | N40: 937.5 | O40: 937.5 | P40: 937.5
L41: IVA (16%) : | N41: =SUM(N39:N40)*16% -> 173525.6 | O41: =SUM(O39:O40)*16% -> 110652.8 | P41: 79597.2
L42: TOTAL primera cuota : | N42: =((N39/2)+N40)*1.16 -> 629574.05 | O42: =((O39/2)+O40)*1.16 -> 401660.15 | P42: 289083.6
L43: Valor segunda cuota : | N43: =N39/2*1.16 -> 628486.55 | O43: =O39/2*1.16 -> 400572.65 | P43: 287996.1
L44: =L32 -> Costo total, (-15% de descuento) | N44: =N42+N43 -> 1258060.6 | O44: =O42+O43 -> 802232.8 | P44: 577079.7
L46: TARIFAS TRIMESTRALES
L47: Prima del asegurado titular : | N47: =N25*(1+Tablas!$K$3) -> 541798.75 | O47: =O25*(1+Tablas!$K$3) -> 345321.25 | P47: =P25*(1+Tablas!$K$3) -> 248272.5
L48: Prima del (de la) cónyuge: | N48: =N26*(1+Tablas!$K$3) -> 541798.75 | O48: =O26*(1+Tablas!$K$3) -> 345321.25 | P48: =P26*(1+Tablas!$K$3) -> 248272.5
L49: Prima del (de los) Hijo (s) : | N49: =N27*(1+Tablas!$K$3) -> 0 | O49: =O27*(1+Tablas!$K$3) -> 0 | P49: =P27*(1+Tablas!$K$3) -> 0
L50: Total otros dependientes | N50: =N28*(1+Tablas!$K$3) -> 0 | O50: =O28*(1+Tablas!$K$3) -> 0 | P50: =P28*(1+Tablas!$K$3) -> 0
L51: TOTAL PRIMA NETA : | N51: =SUM(N47:N50) -> 1083597.5 | O51: =SUM(O47:O50) -> 690642.5 | P51: 496545
L52: Costo administrativo anual : | N52: 937.5 | O52: 937.5 | P52: 937.5
L53: IVA (16%) : | N53: =+N51*16% -> 173375.6 | O53: =+O51*16% -> 110502.8 | P53: =+P51*16% -> 79447.2
L54: TOTAL primera cuota : | N54: =((N51/4)+N52)*1.16 -> 315330.775 | O54: =((O51/4)+O52)*1.16 -> 201373.825 | P54: 145085.55
L55: Valor cuota trimestral 2 a 4: | N55: =N51/4*1.16 -> 314243.275 | O55: =O51/4*1.16 -> 200286.325 | P55: 143998.05
L56: =L44 -> Costo total, (-15% de descuento) | N56: =N54+(N55*3) -> 1258060.6 | O56: =O54+(O55*3) -> 802232.8 | P56: 577079.7
L58: TARIFAS MENSUALES
L59: Prima del asegurado titular : | N59: =N25*(1+Tablas!$K$2) -> 590560.6375 | O59: =O25*(1+Tablas!$K$2) -> 376400.1625 | P59: =P25*(1+Tablas!$K$2) -> 270617.025
B60: Tarifas validas a partir del 1 de marzo al 31 de diciembre del 2025 | L60: Prima del (de la) cónyuge: | N60: =N26*(1+Tablas!$K$2) -> 590560.6375 | O60: =O26*(1+Tablas!$K$2) -> 376400.1625 | P60: =P26*(1+Tablas!$K$2) -> 270617.025
B61: Promociones válidas al 31 de diciembre de 2025 | L61: Prima del (de los) Hijo (s) : | N61: =N27*(1+Tablas!$K$2) -> 0 | O61: =O27*(1+Tablas!$K$2) -> 0 | P61: =P27*(1+Tablas!$K$2) -> 0
B62: El 10% de descuento en productos Globales sobre prima neta será aplicable durante toda la vida de la póliza, siempre y cuando el asegurado no haga cambios en el plan y deducibles contratados. | L62: Total otros dependientes | N62: =N28*(1+Tablas!$K$2) -> 0 | O62: =O28*(1+Tablas!$K$2) -> 0 | P62: =P28*(1+Tablas!$K$2) -> 0
B63: En caso de que el asegurado elija la promoción “Sin costo por pago fraccionado” no podrá optar por la promoción a meses sin intereses. | L63: TOTAL PRIMA NETA : | N63: =SUM(N59:N62) -> 1181121.275 | O63: =SUM(O59:O62) -> 752800.325 | P63: 541234.05
B64: Las pólizas contratadas cuentan con limitaciones y exclusiones las cuáles pueden ser consultadas en www.bupasalud.com.mx Para más información, llámanos al 55 5202-1701 ext 4 o envíanos un correo a: ventasdirectas@bupa.com.mx | L64: Costo administrativo anual : | N64: 937.5 | O64: 937.5 | P64: 937.5
B65: La presente cotización es de carácter informativo, no constituye una solicitud de seguro y/o el monto de la prima definitiva y/o las condiciones de la misma y/o una oferta de aseguramiento en términos del artículo 5to de la Ley Sobre el Contrato de Seguro. La emisión de la póliza asícomo posibles cambios en la tarifa están sujetos a valoración del riesgo de acuerdo con las políticas de Suscripción de Bupa México y es susceptible de modificaciones, por lo que Bupa podrá aceptar o negar el aseguramiento del riesgo propuesto. | L65: IVA (16%) : | N65: =+N63*16% -> 188979.404 | O65: =+O63*16% -> 120448.052 | P65: =+P63*16% -> 86597.448
L66: TOTAL primera cuota : | N66: =((N63/12)+N64)*1.16 -> 115262.5566 | O66: =((O63/12)+O64)*1.16 -> 73858.19808 | P66: =((P63/12)+P64)*1.16 -> 53406.7915
L67: Valor cuota mensual 2 a 12 : | N67: =N63/12*1.16 -> 114175.0566 | O67: =O63/12*1.16 -> 72770.69808 | P67: 52319.2915
L68: =L56 -> Costo total, (-15% de descuento) | N68: =N66+(N67*11) -> 1371188.179 | O68: =O66+(O67*11) -> 874335.877 | P68: =P66+(P67*11) -> 628918.998

Sheet Resumen tarifas
A17: Cotización de Seguro Médico - Bupa Global Health Plans
A19: Nombre del asegurado titular : | C19: =+'INGRESO DE DATOS'!$D$15 -> JUAN VIDAL
A21: Agencia / Agente : | C21: =+'INGRESO DE DATOS'!$D$31 -> Nombre del Agente
A23: Número de adultos en la póliza : | C23: ='INGRESO DE DATOS'!D17 -> 2 | E23: Edad del asegurado titular : | G23: ='INGRESO DE DATOS'!D19 -> 30
A26: Número de hijos en la póliza : | C26: ='INGRESO DE DATOS'!H17 -> 0 | E26: Edad del (de la) cónyuge : | G26: ='INGRESO DE DATOS'!H19 -> 30
H28: B
D29: FECHA DE COTIZACION : | E29: =NOW() -> 2025-06-25T13:21:39.390
A33: Global Ultimate Health Plan
A34: Deducibles | C34: PLAN 1 | D34: PLAN 2 | E34: PLAN 3
A35: Dentro del país de residencia | C35: 0 | D35: 1000 | E35: 2000
A36: Fuera del país de residencia | C36: 0 | D36: 1000 | E36: 2000
C37: Tarifas Anuales
C38: =+'Global Ultimate Health Plan'!N32 -> 1258060.6 | D38: =+'Global Ultimate Health Plan'!O32 -> 802232.8 | E38: =+'Global Ultimate Health Plan'!P32 -> 577079.7
C39: Tarifas Semestrales
C40: =+'Global Ultimate Health Plan'!N44 -> 1258060.6 | D40: =+'Global Ultimate Health Plan'!O44 -> 802232.8 | E40: =+'Global Ultimate Health Plan'!P44 -> 577079.7
C41: Tarifas Trimestrales
C42: =+'Global Ultimate Health Plan'!N56 -> 1258060.6 | D42: =+'Global Ultimate Health Plan'!O56 -> 802232.8 | E42: =+'Global Ultimate Health Plan'!P56 -> 577079.7
C43: Tarifas Mensuales
C44: =+'Global Ultimate Health Plan'!N68 -> 1371188.179 | D44: =+'Global Ultimate Health Plan'!O68 -> 874335.877 | E44: =+'Global Ultimate Health Plan'!P68 -> 628918.998
A46: Global Elite Health Plan
A47: Deducibles | C47: PLAN 1 | D47: PLAN 2 | E47: PLAN 3 | F47: PLAN 4 | G47: PLAN 5
A48: Dentro del país de residencia | C48: 1000 | D48: 2000 | E48: 3500 | F48: 5000 | G48: 10000
A49: Fuera del país de residencia | C49: 1000 | D49: 2000 | E49: 3500 | F49: 5000 | G49: 10000
C50: Tarifas Anuales
C51: =+'Global Elite Health Plan'!M38 -> 549545.65 | D51: =+'Global Elite Health Plan'!N38 -> 392796.3 | E51: =+'Global Elite Health Plan'!O38 -> 312264.75 | F51: =+'Global Elite Health Plan'!P38 -> 269644.9 | G51: =+'Global Elite Health Plan'!Q38 -> 203114.55
C52: Tarifas Semestrales
C53: =+'Global Elite Health Plan'!M50 -> 549545.65 | D53: =+'Global Elite Health Plan'!N50 -> 392796.3 | E53: =+'Global Elite Health Plan'!O50 -> 312264.75 | F53: =+'Global Elite Health Plan'!P50 -> 269644.9 | G53: =+'Global Elite Health Plan'!Q50 -> 203114.55
C54: Tarifas Trimestrales
C55: =+'Global Elite Health Plan'!M62 -> 549545.65 | D55: =+'Global Elite Health Plan'!N62 -> 392796.3 | E55: =+'Global Elite Health Plan'!O62 -> 312264.75 | F55: =+'Global Elite Health Plan'!P62 -> 269644.9 | G55: =+'Global Elite Health Plan'!Q62 -> 203114.55
C56: Tarifas Mensuales
C57: =+'Global Elite Health Plan'!M74 -> 598906.8835 | D57: =+'Global Elite Health Plan'!N74 -> 428050.092 | E57: =+'Global Elite Health Plan'!O74 -> 340270.7025 | F57: =+'Global Elite Health Plan'!P74 -> 293815.066 | G57: =+'Global Elite Health Plan'!Q74 -> 221296.9845
A59: Global Premier Health Plan
A60: Deducibles | C60: PLAN 1 | D60: PLAN 2 | E60: PLAN 3 | F60: PLAN 4
A61: Dentro del país de residencia | C61: 1000 | D61: 2000 | E61: 5000 | F61: 10000
A62: Fuera del país de residencia | C62: 1000 | D62: 2000 | E62: 5000 | F62: 10000
C63: Tarifas Anuales
C64: =+'Global Premier Health Plan'!N48 -> 357546.8 | D64: =+'Global Premier Health Plan'!O48 -> 258848.2 | E64: =+'Global Premier Health Plan'!P48 -> 181274.65 | F64: =+'Global Premier Health Plan'!Q48 -> 137446.95
C65: Tarifas Semestrales
C66: =+'Global Premier Health Plan'!N60 -> 357546.8 | D66: =+'Global Premier Health Plan'!O60 -> 258848.2 | E66: =+'Global Premier Health Plan'!P60 -> 181274.65 | F66: =+'Global Premier Health Plan'!Q60 -> 137446.95
C67: Tarifas Trimestrales
C68: =+'Global Premier Health Plan'!N72 -> 357546.8 | D68: =+'Global Premier Health Plan'!O72 -> 258848.2 | E68: =+'Global Premier Health Plan'!P72 -> 181274.65 | F68: =+'Global Premier Health Plan'!Q72 -> 137446.95
C69: Tarifas Mensuales
C70: =+'Global Premier Health Plan'!N84 -> 389628.137 | D70: =+'Global Premier Health Plan'!O84 -> 282046.663 | E70: =+'Global Premier Health Plan'!P84 -> 197491.4935 | F70: =+'Global Premier Health Plan'!Q84 -> 149719.3005
A72: Global Select Health Plan
A73: ESTE PRODUCTO NO CUENTA CON COBERTURA DE MATERNIDAD
A74: Deducibles | C74: PLAN A | D74: PLAN 1 | E74: PLAN 2 | F74: PLAN 3 | G74: PLAN 4
A75: Dentro del país de residencia | C75: 2000 | D75: 3500 | E75: 5000 | F75: 10000 | G75: 20000
A76: Fuera del país de residencia | C76: 2000 | D76: 3500 | E76: 5000 | F76: 10000 | G76: 20000
C77: Tarifas Anuales
C78: =+'Global Select Health Plan'!M45 -> 169171.5 | D78: =+'Global Select Health Plan'!N45 -> 143313.65 | E78: =+'Global Select Health Plan'!O45 -> 126970.7 | F78: =+'Global Select Health Plan'!P45 -> 85534.05 | G78: =+'Global Select Health Plan'!Q45 -> 67909.3
C79: Tarifas Semestrales
C80: =+'Global Select Health Plan'!M57 -> 169171.5 | D80: =+'Global Select Health Plan'!N57 -> 143313.65 | E80: =+'Global Select Health Plan'!O57 -> 126970.7 | F80: =+'Global Select Health Plan'!P57 -> 85534.05 | G80: =+'Global Select Health Plan'!Q57 -> 67909.3
C81: Tarifas Trimestrales
C82: =+'Global Select Health Plan'!M69 -> 169171.5 | D82: =+'Global Select Health Plan'!N69 -> 143313.65 | E82: =+'Global Select Health Plan'!O69 -> 126970.7 | F82: =+'Global Select Health Plan'!P69 -> 85534.05 | G82: =+'Global Select Health Plan'!Q69 -> 67909.3
C83: Tarifas Mensuales
C84: =+'Global Select Health Plan'!M81 -> 184299.06 | D84: =+'Global Select Health Plan'!N81 -> 156114.0035 | E84: =+'Global Select Health Plan'!O81 -> 138300.188 | F84: =+'Global Select Health Plan'!P81 -> 93134.2395 | G84: =+'Global Select Health Plan'!Q81 -> 73923.262
A86: Global Select PE Health Plan
A87: ESTE PRODUCTO NO CUENTA CON COBERTURA DE MATERNIDAD, NO APLICA DESCUENTO ESPECIAL
A88: Deducibles | C88: PLAN A | D88: PLAN 1 | E88: PLAN 2 | F88: PLAN 3 | G88: PLAN 4
A89: Dentro del país de residencia | C89: 2000 | D89: 3500 | E89: 5000 | F89: 10000 | G89: 20000
A90: Fuera del país de residencia | C90: 2000 | D90: 3500 | E90: 5000 | F90: 10000 | G90: 20000
C91: Tarifas Anuales
C92: =+'Global Select PE Health Plan'!M45 -> 159369.5 | D92: =+'Global Select PE Health Plan'!N45 -> 135038.5 | E92: =+'Global Select PE Health Plan'!O45 -> 119639.5 | F92: =+'Global Select PE Health Plan'!P45 -> 80663.5 | G92: =+'Global Select PE Health Plan'!Q45 -> 64075.5
C93: Tarifas Semestrales
C94: =+'Global Select PE Health Plan'!M57 -> 159369.5 | D94: =+'Global Select PE Health Plan'!N57 -> 135038.5 | E94: =+'Global Select PE Health Plan'!O57 -> 119639.5 | F94: =+'Global Select PE Health Plan'!P57 -> 80663.5 | G94: =+'Global Select PE Health Plan'!Q57 -> 64075.5
C95: Tarifas Trimestrales
C96: =+'Global Select PE Health Plan'!M69 -> 159369.5 | D96: =+'Global Select PE Health Plan'!N69 -> 135038.5 | E96: =+'Global Select PE Health Plan'!O69 -> 119639.5 | F96: =+'Global Select PE Health Plan'!P69 -> 80663.5 | G96: =+'Global Select PE Health Plan'!Q69 -> 64075.5
C97: Tarifas Mensuales
C98: =+'Global Select PE Health Plan'!M81 -> 173614.88 | D98: =+'Global Select PE Health Plan'!N81 -> 147094.09 | E98: =+'Global Select PE Health Plan'!O81 -> 130309.18 | F98: =+'Global Select PE Health Plan'!P81 -> 87825.34 | G98: =+'Global Select PE Health Plan'!Q81 -> 69744.42
A100: Este plan cuenta con los siguientes periodos de espera adicionales:
A101: PERÍODOS DE ESPERA
A102: Padecimientos de rodilla, ácido-pépticos, columna vertebral, nariz, senos paranasales, amígdalas, adenoides, hemorroides, hernias, tumoraciones mamarias (benignas y/o malignas), padecimientos anorrectales, prostáticos, ginecológicos, várices, insuficiencia del piso perineal, padecimientos de la vesícula y vías biliares, enfermedades articulares de las falanges de los pies, cataratas, litiasis renal y en vías urinarias. | G102: 6 meses
A103: Tratamiento contra el Cáncer. | G103: 6 meses
A104: Examen dental preventivo. | G104: 10 meses
A105: Trasplantes. | G105: 6 meses
A107: Cobertura de preexistencias. Quedarán cubiertas las preexistencias declaradas al momento de la solicitud con un período de espera de 2 años, independientemente de la aplicación de alguna extra prima o sobre deducible derivado de la suscripción. No aplica reconocimiento de antigüedad para reducir o eliminar los períodos de espera mencionados en este endoso.
A109: Global Major Medical Health Plan
A110: Deducibles | C110: PLAN 1 | D110: PLAN 2
A111: Dentro del país de residencia | C111: 10000 | D111: 20000
A112: Fuera del país de residencia | C112: 10000 | D112: 20000
C113: Tarifas Anuales
C114: ='Global Major Medical Health Pla'!M41 -> 112082.1 | D114: ='Global Major Medical Health Pla'!N41 -> 82502.1
C115: Tarifas Semestrales
C116: ='Global Major Medical Health Pla'!M53 -> 112082.1 | D116: ='Global Major Medical Health Pla'!N53 -> 82502.1
C117: Tarifas Trimestrales
C118: ='Global Major Medical Health Pla'!M65 -> 112082.1 | D118: ='Global Major Medical Health Pla'!N65 -> 82502.1
C119: Tarifas Mensuales
C120: ='Global Major Medical Health Pla'!M77 -> 122071.614 | D120: ='Global Major Medical Health Pla'!N77 -> 89829.414
A122: Choice Global Health Plan
A123: Deducibles | C123: PLAN A | D123: PLAN 1 | E123: PLAN 2
A124: Dentro del país de residencia | C124: 5000 | D124: 10000 | E124: 20000
A125: Fuera del país de residencia | C125: 5000 | D125: 10000 | E125: 20000
C126: Tarifas Anuales
C127: ='Choice Global Health Plan'!N32 -> 86988.4 | D127: ='Choice Global Health Plan'!O32 -> 62239.8 | E127: ='Choice Global Health Plan'!P32 -> 51295.2
C128: Tarifas Semestrales
C129: ='Choice Global Health Plan'!N44 -> 86988.4 | D129: ='Choice Global Health Plan'!O44 -> 62239.8 | E129: ='Choice Global Health Plan'!P44 -> 51295.2
C130: Tarifas Trimestrales
C131: ='Choice Global Health Plan'!N56 -> 86988.4 | D131: ='Choice Global Health Plan'!O56 -> 62239.8 | E131: ='Choice Global Health Plan'!P56 -> 51295.2
C132: Tarifas Mensuales
C133: ='Choice Global Health Plan'!N68 -> 94719.481 | D133: ='Choice Global Health Plan'!O68 -> 67743.507 | E133: ='Choice Global Health Plan'!P68 -> 55813.893
A135: $937.5 de costo administrativo anual aplica a la primera cuota
A137: Tarifas validas a partir del 1 de marzo al 31 de diciembre del 2025
A139: La presente cotización es de carácter informativo y no constituye el monto de la prima definitiva ni las condiciones de la misma. La emisión de la póliza está sujeta a valoración del riesgo y/o cambio en la tarifa por parte del área de Suscripción de Bupa y puede tener modificaciones por lo que no expresa compromiso legal para la cobertura del seguro. Este cotizador es válido del del 1 de Marzo del 2023 al 31 de Diciembre del 2025

Sheet Tablas (hidden)
AB1: Regiones
A2: BUPA GLOBAL ELITE | I2: FACTOR MENSUAL: | K2: =IF('INGRESO DE DATOS'!E25,0.09,0.09) -> 0.09 | M2: % Anteriores | N2: 0.0925 | P2: Usamed | Q2: 625 | AB2: Zona 1: Sonora, Baja California Sur, Jalisco, Chihuahua, Coahulia, Tama
A3: TARIFAS ANUALES | I3: FACTOR TRIMESTRAL: | K3: =IF('INGRESO DE DATOS'!E27,0,0.075) -> 0 | N3: 0.26875
A4: EDAD | I4: FACTOR SEMIANUAL: | K4: =IF('INGRESO DE DATOS'!E25,0,0.045) -> 0 | N4: 0.5225
C5: 1000 | D5: 2000 | E5: 3500 | F5: 5000 | G5: 10000 | O5: Otros dependientes panel
A6: 18 | C6: 186475 | D6: 133037.5 | E6: 105575 | F6: 91050 | G6: 68375 | O6: Edad otros dependientes | P6: ID | Q6: 1000 | R6: 2000 | S6: 3500 | T6: 5000 | U6: 10000
A7: 19 | C7: 192750 | D7: 137512.5 | E7: 109137.5 | F7: 94112.5 | G7: 70675 | O7: ='INGRESO DE DATOS'!$L$16 -> 0 | P7: 1 | Q7: =IF(O7>0,(IF(O7>18,VLOOKUP(O7,$A$6:$G$72,3,FALSE),Tablas!$C$6)),0) -> 0 | R7: =IF(O7>0,(IF(O7>18,VLOOKUP(O7,$A$6:$G$72,4,FALSE),Tablas!$D$6)),0) -> 0 | S7: =IF(O7>0,(IF(O7>18,VLOOKUP(O7,$A$6:$G$72,5,FALSE),Tablas!$E$6)),0) -> 0 | T7: =IF(O7>0,(IF(O7>18,VLOOKUP(O7,$A$6:$G$72,6,FALSE),Tablas!$F$6)),0) -> 0 | U7: =IF(O7>0,(IF(O7>18,VLOOKUP(O7,$A$6:$G$72,7,FALSE),Tablas!$G$6)),0) -> 0
A8: 20 | C8: 199237.5 | D8: 142137.5 | E8: 112800 | F8: 97287.5 | G8: 73062.5 | O8: ='INGRESO DE DATOS'!$L$17 -> 0 | P8: 2 | Q8: =IF(O8>0,(IF(O8>18,VLOOKUP(O8,$A$6:$G$72,3,FALSE),Tablas!$C$6)),0) -> 0 | R8: =IF(O8>0,(IF(O8>18,VLOOKUP(O8,$A$6:$G$72,4,FALSE),Tablas!$D$6)),0) -> 0 | S8: =IF(O8>0,(IF(O8>18,VLOOKUP(O8,$A$6:$G$72,5,FALSE),Tablas!$E$6)),0) -> 0 | T8: =IF(O8>0,(IF(O8>18,VLOOKUP(O8,$A$6:$G$72,6,FALSE),Tablas!$F$6)),0) -> 0 | U8: =IF(O8>0,(IF(O8>18,VLOOKUP(O8,$A$6:$G$72,7,FALSE),Tablas!$G$6)),0) -> 0
A9: 21 | C9: 205937.5 | D9: 146925 | E9: 116600 | F9: 100562.5 | G9: 75512.5 | O9: ='INGRESO DE DATOS'!$L$18 -> 0 | P9: 3 | Q9: =IF(O9>0,(IF(O9>18,VLOOKUP(O9,$A$6:$G$72,3,FALSE),Tablas!$C$6)),0) -> 0 | R9: =IF(O9>0,(IF(O9>18,VLOOKUP(O9,$A$6:$G$72,4,FALSE),Tablas!$D$6)),0) -> 0 | S9: =IF(O9>0,(IF(O9>18,VLOOKUP(O9,$A$6:$G$72,5,FALSE),Tablas!$E$6)),0) -> 0 | T9: =IF(O9>0,(IF(O9>18,VLOOKUP(O9,$A$6:$G$72,6,FALSE),Tablas!$F$6)),0) -> 0 | U9: =IF(O9>0,(IF(O9>18,VLOOKUP(O9,$A$6:$G$72,7,FALSE),Tablas!$G$6)),0) -> 0
A10: 22 | C10: 212862.5 | D10: 151875 | E10: 120525 | F10: 103937.5 | G10: 78062.5 | O10: ='INGRESO DE DATOS'!$L$19 -> 0 | P10: 4 | Q10: =IF(O10>0,(IF(O10>18,VLOOKUP(O10,$A$6:$G$72,3,FALSE),Tablas!$C$6)),0) -> 0 | R10: =IF(O10>0,(IF(O10>18,VLOOKUP(O10,$A$6:$G$72,4,FALSE),Tablas!$D$6)),0) -> 0 | S10: =IF(O10>0,(IF(O10>18,VLOOKUP(O10,$A$6:$G$72,5,FALSE),Tablas!$E$6)),0) -> 0 | T10: =IF(O10>0,(IF(O10>18,VLOOKUP(O10,$A$6:$G$72,6,FALSE),Tablas!$F$6)),0) -> 0 | U10: =IF(O10>0,(IF(O10>18,VLOOKUP(O10,$A$6:$G$72,7,FALSE),Tablas!$G$6)),0) -> 0
A11: 23 | C11: 220025 | D11: 156975 | E11: 124575 | F11: 107437.5 | G11: 80687.5 | O11: ='INGRESO DE DATOS'!$L$20 -> 0 | P11: 5 | Q11: =IF(O11>0,(IF(O11>18,VLOOKUP(O11,$A$6:$G$72,3,FALSE),Tablas!$C$6)),0) -> 0 | R11: =IF(O11>0,(IF(O11>18,VLOOKUP(O11,$A$6:$G$72,4,FALSE),Tablas!$D$6)),0) -> 0 | S11: =IF(O11>0,(IF(O11>18,VLOOKUP(O11,$A$6:$G$72,5,FALSE),Tablas!$E$6)),0) -> 0 | T11: =IF(O11>0,(IF(O11>18,VLOOKUP(O11,$A$6:$G$72,6,FALSE),Tablas!$F$6)),0) -> 0 | U11: =IF(O11>0,(IF(O11>18,VLOOKUP(O11,$A$6:$G$72,7,FALSE),Tablas!$G$6)),0) -> 0
A12: 24 | C12: 227437.5 | D12: 162262.5 | E12: 128775 | F12: 111050 | G12: 83400 | P12: Total | Q12: =SUM(Q7:Q11) -> 0 | R12: =SUM(R7:R11) -> 0 | S12: =SUM(S7:S11) -> 0 | T12: 0 | U12: 0
A13: 25 | C13: 235087.5 | D13: 167725 | E13: 133100 | F13: 114787.5 | G13: 86200
A14: 26 | C14: 243000 | D14: 173362.5 | E14: 137587.5 | F14: 118650 | G14: 89100
A15: 27 | C15: 251175 | D15: 179200 | E15: 142212.5 | F15: 122650 | G15: 92100
A16: 28 | C16: 259625 | D16: 185225 | E16: 147000 | F16: 126775 | G16: 95200
A17: 29 | C17: 268362.5 | D17: 191462.5 | E17: 151950 | F17: 131037.5 | G17: 98412.5
A18: 30 | C18: 277387.5 | D18: 197900 | E18: 157062.5 | F18: 135450 | G18: 101712.5
A19: 31 | C19: 286725 | D19: 204562.5 | E19: 162337.5 | F19: 140000 | G19: 105137.5
A20: 32 | C20: 296375 | D20: 211450 | E20: 167800 | F20: 144712.5 | G20: 108675
A21: 33 | C21: 306337.5 | D21: 218562.5 | E21: 173450 | F21: 149587.5 | G21: 112337.5
A22: 34 | C22: 318237.5 | D22: 227050 | E22: 180187.5 | F22: 155400 | G22: 116700
A23: 35 | C23: 323462.5 | D23: 230775 | E23: 183150 | F23: 157950 | G23: 118612.5
A24: 36 | C24: 328775 | D24: 234562.5 | E24: 186150 | F24: 160537.5 | G24: 120562.5
A25: 37 | C25: 334175 | D25: 238412.5 | E25: 189212.5 | F25: 163175 | G25: 122537.5
A26: 38 | C26: 339650 | D26: 242325 | E26: 192312.5 | F26: 165850 | G26: 124550
A27: 39 | C27: 345225 | D27: 246300 | E27: 195462.5 | F27: 168575 | G27: 126600
A28: 40 | C28: 350887.5 | D28: 250350 | E28: 198675 | F28: 171337.5 | G28: 128675
A29: 41 | C29: 356650 | D29: 254450 | E29: 201937.5 | F29: 174150 | G29: 130787.5
A30: 42 | C30: 362500 | D30: 258625 | E30: 205250 | F30: 177012.5 | G30: 132925
A31: 43 | C31: 368450 | D31: 262875 | E31: 208612.5 | F31: 179912.5 | G31: 135112.5
A32: 44 | C32: 374500 | D32: 267187.5 | E32: 212037.5 | F32: 182862.5 | G32: 137325
A33: 45 | C33: 380650 | D33: 271575 | E33: 215525 | F33: 185862.5 | G33: 139587.5
A34: 46 | C34: 386887.5 | D34: 276025 | E34: 219062.5 | F34: 188912.5 | G34: 141875
A35: 47 | C35: 393237.5 | D35: 280550 | E35: 222650 | F35: 192012.5 | G35: 144200
A36: 48 | C36: 399687.5 | D36: 285162.5 | E36: 226300 | F36: 195175 | G36: 146562.5
A37: 49 | C37: 408662.5 | D37: 291562.5 | E37: 231387.5 | F37: 199550 | G37: 149850
A38: 50 | C38: 423850 | D38: 302400 | E38: 239987.5 | F38: 206962.5 | G38: 155425
A39: 51 | C39: 439600 | D39: 313637.5 | E39: 248900 | F39: 214662.5 | G39: 161200
A40: 52 | C40: 455950 | D40: 325287.5 | E40: 258150 | F40: 222637.5 | G40: 167200
A41: 53 | C41: 472887.5 | D41: 337387.5 | E41: 267750 | F41: 230912.5 | G41: 173412.5
A42: 54 | C42: 490462.5 | D42: 349925 | E42: 277700 | F42: 239500 | G42: 179850
A43: 55 | C43: 508700 | D43: 362925 | E43: 288025 | F43: 248400 | G43: 186537.5
A44: 56 | C44: 527525 | D44: 376362.5 | E44: 298687.5 | F44: 257587.5 | G44: 193450
A45: 57 | C45: 556512.5 | D45: 397050 | E45: 315100 | F45: 271750 | G45: 204075
A46: 58 | C46: 587087.5 | D46: 418862.5 | E46: 332412.5 | F46: 286675 | G46: 215287.5
A47: 59 | C47: 619350 | D47: 441875 | E47: 350675 | F47: 302425 | G47: 227112.5
A48: 60 | C48: 653375 | D48: 466150 | E48: 369937.5 | F48: 319037.5 | G48: 239587.5
A49: 61 | C49: 689275 | D49: 491762.5 | E49: 390262.5 | F49: 336575 | G49: 252762.5
A50: 62 | C50: 727150 | D50: 518787.5 | E50: 411712.5 | F50: 355062.5 | G50: 266650
A51: 63 | C51: 767100 | D51: 547287.5 | E51: 434325 | F51: 374575 | G51: 281300
A52: 64 | C52: 809250 | D52: 577350 | E52: 458200 | F52: 395150 | G52: 296750
A53: 65 | C53: 853712.5 | D53: 609075 | E53: 483375 | F53: 416862.5 | G53: 313050
A54: 66 | C54: 900612.5 | D54: 642537.5 | E54: 509925 | F54: 439762.5 | G54: 330250
A55: 67 | C55: 950100 | D55: 677850 | E55: 537950 | F55: 463925 | G55: 348400
A56: 68 | C56: 1002300 | D56: 715087.5 | E56: 567500 | F56: 489425 | G56: 367537.5
A57: 69 | C57: 1057362.5 | D57: 754375 | E57: 598687.5 | F57: 516312.5 | G57: 387737.5
A58: 70 | C58: 1115462.5 | D58: 795825 | E58: 631575 | F58: 544675 | G58: 409037.5
A59: 71 | C59: 1176750 | D59: 839550 | E59: 666275 | F59: 574600 | G59: 431512.5
A60: 72 | C60: 1241400 | D60: 885675 | E60: 702887.5 | F60: 606175 | G60: 455225
A61: 73 | C61: 1309612.5 | D61: 934337.5 | E61: 741500 | F61: 639487.5 | G61: 480237.5
A62: 74 | C62: 1381562.5 | D62: 985675 | E62: 782237.5 | F62: 674612.5 | G62: 506625
A63: 75 | C63: 1457475 | D63: 1039837.5 | E63: 825225 | F63: 711687.5 | G63: 534450
A64: 76 | C64: 1537550 | D64: 1096962.5 | E64: 870562.5 | F64: 750787.5 | G64: 563825
A65: 77 | C65: 1622025 | D65: 1157237.5 | E65: 918400 | F65: 792037.5 | G65: 594800
A66: 78 | C66: 1711150 | D66: 1220812.5 | E66: 968850 | F66: 835550 | G66: 627475
A67: 79 | C67: 1805162.5 | D67: 1287887.5 | E67: 1022087.5 | F67: 881462.5 | G67: 661950
A68: 80 | C68: 1904350 | D68: 1358650 | E68: 1078250 | F68: 929900 | G68: 698325
A69: 81 | C69: 2008987.5 | D69: 1433300 | E69: 1137487.5 | F69: 980987.5 | G69: 736687.5
A70: 82 | C70: 2119362.5 | D70: 1512050 | E70: 1199987.5 | F70: 1034887.5 | G70: 777175
A71: 83 | C71: 2235812.5 | D71: 1595137.5 | E71: 1265912.5 | F71: 1091750 | G71: 819875
A72: 84 | B72: o más | C72: 2358650 | D72: 1682775 | E72: 1335475 | F72: 1151725 | G72: 864912.5
A73: 1 | B73: Hijo | C73: 80062.5 | D73: 57112.5 | E73: 45325 | F73: 39087.5 | G73: 29362.5
A74: 2 | B74: Hijos | C74: 126137.5 | D74: 90000 | E74: 71425 | F74: 61587.5 | G74: 46250
A75: 3 | B75: Hijos o más | C75: 184050 | D75: 131300 | E75: 104200 | F75: 89875 | G75: 67487.5
A77: BUPA GLOBAL ELITE - MENSUALES
A78: EDAD
C79: 1000 | D79: 2000 | E79: 3500
A80: 18 | C80: =C6*$K$2 -> 16782.75 | D80: =D6*$K$2 -> 11973.375 | E80: 9501.75 | F80: 8194.5 | G80: 6153.75
A81: 19 | C81: =C7*$K$2 -> 17347.5 | D81: 12376.125 | E81: 9822.375 | F81: 8470.125 | G81: 6360.75
A82: 20 | C82: =C8*$K$2 -> 17931.375 | D82: 12792.375 | E82: 10152 | F82: 8755.875 | G82: 6575.625
A83: 21 | C83: =C9*$K$2 -> 18534.375 | D83: 13223.25 | E83: 10494 | F83: 9050.625 | G83: 6796.125
A84: 22 | C84: =C10*$K$2 -> 19157.625 | D84: 13668.75 | E84: 10847.25 | F84: 9354.375 | G84: 7025.625
A85: 23 | C85: =C11*$K$2 -> 19802.25 | D85: 14127.75 | E85: 11211.75 | F85: 9669.375 | G85: 7261.875
A86: 24 | C86: =C12*$K$2 -> 20469.375 | D86: 14603.625 | E86: 11589.75 | F86: 9994.5 | G86: 7506
A87: 25 | C87: =C13*$K$2 -> 21157.875 | D87: 15095.25 | E87: 11979 | F87: 10330.875 | G87: 7758
A88: 26 | C88: =C14*$K$2 -> 21870 | D88: 15602.625 | E88: 12382.875 | F88: 10678.5 | G88: 8019
A89: 27 | C89: =C15*$K$2 -> 22605.75 | D89: 16128 | E89: 12799.125 | F89: 11038.5 | G89: 8289
A90: 28 | C90: =C16*$K$2 -> 23366.25 | D90: 16670.25 | E90: 13230 | F90: 11409.75 | G90: 8568
A91: 29 | C91: =C17*$K$2 -> 24152.625 | D91: 17231.625 | E91: 13675.5 | F91: 11793.375 | G91: 8857.125
A92: 30 | C92: =C18*$K$2 -> 24964.875 | D92: 17811 | E92: 14135.625 | F92: 12190.5 | G92: 9154.125
A93: 31 | C93: =C19*$K$2 -> 25805.25 | D93: 18410.625 | E93: 14610.375 | F93: 12600 | G93: 9462.375
A94: 32 | C94: =C20*$K$2 -> 26673.75 | D94: 19030.5 | E94: 15102 | F94: 13024.125 | G94: 9780.75
A95: 33 | C95: =C21*$K$2 -> 27570.375 | D95: 19670.625 | E95: 15610.5 | F95: 13462.875 | G95: 10110.375
A96: 34 | C96: =C22*$K$2 -> 28641.375 | D96: 20434.5 | E96: 16216.875 | F96: 13986 | G96: 10503
A97: 35 | C97: =C23*$K$2 -> 29111.625 | D97: 20769.75 | E97: 16483.5 | F97: 14215.5 | G97: 10675.125
A98: 36 | C98: =C24*$K$2 -> 29589.75 | D98: 21110.625 | E98: 16753.5 | F98: 14448.375 | G98: 10850.625
A99: 37 | C99: =C25*$K$2 -> 30075.75 | D99: 21457.125 | E99: 17029.125 | F99: 14685.75 | G99: 11028.375
A100: 38 | C100: =C26*$K$2 -> 30568.5 | D100: 21809.25 | E100: 17308.125 | F100: 14926.5 | G100: 11209.5
A101: 39 | C101: =C27*$K$2 -> 31070.25 | D101: 22167 | E101: 17591.625 | F101: 15171.75 | G101: 11394
A102: 40 | C102: =C28*$K$2 -> 31579.875 | D102: 22531.5 | E102: 17880.75 | F102: 15420.375 | G102: 11580.75
A103: 41 | C103: =C29*$K$2 -> 32098.5 | D103: 22900.5 | E103: 18174.375 | F103: 15673.5 | G103: 11770.875
A104: 42 | C104: =C30*$K$2 -> 32625 | D104: 23276.25 | E104: 18472.5 | F104: 15931.125 | G104: 11963.25
A105: 43 | C105: =C31*$K$2 -> 33160.5 | D105: 23658.75 | E105: 18775.125 | F105: 16192.125 | G105: 12160.125
A106: 44 | C106: =C32*$K$2 -> 33705 | D106: 24046.875 | E106: 19083.375 | F106: 16457.625 | G106: 12359.25
A107: 45 | C107: =C33*$K$2 -> 34258.5 | D107: 24441.75 | E107: 19397.25 | F107: 16727.625 | G107: 12562.875
A108: 46 | C108: =C34*$K$2 -> 34819.875 | D108: 24842.25 | E108: 19715.625 | F108: 17002.125 | G108: 12768.75
A109: 47 | C109: =C35*$K$2 -> 35391.375 | D109: 25249.5 | E109: 20038.5 | F109: 17281.125 | G109: 12978
A110: 48 | C110: =C36*$K$2 -> 35971.875 | D110: 25664.625 | E110: 20367 | F110: 17565.75 | G110: 13190.625
A111: 49 | C111: =C37*$K$2 -> 36779.625 | D111: 26240.625 | E111: 20824.875 | F111: 17959.5 | G111: 13486.5
A112: 50 | C112: =C38*$K$2 -> 38146.5 | D112: 27216 | E112: 21598.875 | F112: 18626.625 | G112: 13988.25
A113: 51 | C113: =C39*$K$2 -> 39564 | D113: 28227.375 | E113: 22401 | F113: 19319.625 | G113: 14508
A114: 52 | C114: =C40*$K$2 -> 41035.5 | D114: 29275.875 | E114: 23233.5 | F114: 20037.375 | G114: 15048
A115: 53 | C115: =C41*$K$2 -> 42559.875 | D115: 30364.875 | E115: 24097.5 | F115: 20782.125 | G115: 15607.125
A116: 54 | C116: =C42*$K$2 -> 44141.625 | D116: 31493.25 | E116: 24993 | F116: 21555 | G116: 16186.5
A117: 55 | C117: =C43*$K$2 -> 45783 | D117: 32663.25 | E117: 25922.25 | F117: 22356 | G117: 16788.375
A118: 56 | C118: =C44*$K$2 -> 47477.25 | D118: 33872.625 | E118: 26881.875 | F118: 23182.875 | G118: 17410.5
A119: 57 | C119: =C45*$K$2 -> 50086.125 | D119: 35734.5 | E119: 28359 | F119: 24457.5 | G119: 18366.75
A120: 58 | C120: =C46*$K$2 -> 52837.875 | D120: 37697.625 | E120: 29917.125 | F120: 25800.75 | G120: 19375.875
A121: 59 | C121: =C47*$K$2 -> 55741.5 | D121: 39768.75 | E121: 31560.75 | F121: 27218.25 | G121: 20440.125
A122: 60 | C122: =C48*$K$2 -> 58803.75 | D122: 41953.5 | E122: 33294.375 | F122: 28713.375 | G122: 21562.875
A123: 61 | C123: =C49*$K$2 -> 62034.75 | D123: 44258.625 | E123: 35123.625 | F123: 30291.75 | G123: 22748.625
A124: 62 | C124: =C50*$K$2 -> 65443.5 | D124: 46690.875 | E124: 37054.125 | F124: 31955.625 | G124: 23998.5
A125: 63 | C125: =C51*$K$2 -> 69039 | D125: 49255.875 | E125: 39089.25 | F125: 33711.75 | G125: 25317
A126: 64 | C126: =C52*$K$2 -> 72832.5 | D126: 51961.5 | E126: 41238 | F126: 35563.5 | G126: 26707.5
A127: 65 | C127: =C53*$K$2 -> 76834.125 | D127: 54816.75 | E127: 43503.75 | F127: 37517.625 | G127: 28174.5
A128: 66 | C128: =C54*$K$2 -> 81055.125 | D128: 57828.375 | E128: 45893.25 | F128: 39578.625 | G128: 29722.5
A129: 67 | C129: =C55*$K$2 -> 85509 | D129: 61006.5 | E129: 48415.5 | F129: 41753.25 | G129: 31356
A130: 68 | C130: =C56*$K$2 -> 90207 | D130: 64357.875 | E130: 51075 | F130: 44048.25 | G130: 33078.375
A131: 69 | C131: =C57*$K$2 -> 95162.625 | D131: 67893.75 | E131: 53881.875 | F131: 46468.125 | G131: 34896.375
A132: 70 | C132: =C58*$K$2 -> 100391.625 | D132: 71624.25 | E132: 56841.75 | F132: 49020.75 | G132: 36813.375
A133: 71 | C133: =C59*$K$2 -> 105907.5 | D133: 75559.5 | E133: 59964.75 | F133: 51714 | G133: 38836.125
A134: 72 | C134: =C60*$K$2 -> 111726 | D134: 79710.75 | E134: 63259.875 | F134: 54555.75 | G134: 40970.25
A135: 73 | C135: =C61*$K$2 -> 117865.125 | D135: 84090.375 | E135: 66735 | F135: 57553.875 | G135: 43221.375
A136: 74 | C136: =C62*$K$2 -> 124340.625 | D136: 88710.75 | E136: 70401.375 | F136: 60715.125 | G136: 45596.25
A137: 75 | C137: =C63*$K$2 -> 131172.75 | D137: 93585.375 | E137: 74270.25 | F137: 64051.875 | G137: 48100.5
A138: 76 | C138: =C64*$K$2 -> 138379.5 | D138: 98726.625 | E138: 78350.625 | F138: 67570.875 | G138: 50744.25
A139: 77 | C139: =C65*$K$2 -> 145982.25 | D139: 104151.375 | E139: 82656 | F139: 71283.375 | G139: 53532
A140: 78 | C140: =C66*$K$2 -> 154003.5 | D140: 109873.125 | E140: 87196.5 | F140: 75199.5 | G140: 56472.75
A141: 79 | C141: =C67*$K$2 -> 162464.625 | D141: 115909.875 | E141: 91987.875 | F141: 79331.625 | G141: 59575.5
A142: 80 | C142: =C68*$K$2 -> 171391.5 | D142: 122278.5 | E142: 97042.5 | F142: 83691 | G142: 62849.25
A143: 81 | C143: =C69*$K$2 -> 180808.875 | D143: 128997 | E143: 102373.875 | F143: 88288.875 | G143: 66301.875
A144: 82 | C144: =C70*$K$2 -> 190742.625 | D144: 136084.5 | E144: 107998.875 | F144: 93139.875 | G144: 69945.75
A145: 83 | C145: =C71*$K$2 -> 201223.125 | D145: 143562.375 | E145: 113932.125 | F145: 98257.5 | G145: 73788.75
A146: 84 | B146: o más | C146: =C72*$K$2 -> 212278.5 | D146: 151449.75 | E146: 120192.75 | F146: 103655.25 | G146: 77842.125
A147: 1 | B147: Hijo | C147: =C73*$K$2 -> 7205.625 | D147: 5140.125 | E147: 4079.25 | F147: 3517.875 | G147: 2642.625
A148: 2 | B148: Hijos | C148: =C74*$K$2 -> 11352.375 | D148: 8100 | E148: 6428.25 | F148: 5542.875 | G148: 4162.5
A149: 3 | B149: Hijos o más | C149: =C75*$K$2 -> 16564.5 | D149: 11817 | E149: 9378 | F149: 8088.75 | G149: 6073.875
A151: BUPA GLOBAL PREMIER
A152: TARIFAS ANUALES
A153: EDAD
C154: 1000 | D154: 2000 | E154: 5000 | F154: 10000 | O154: Otros dependientes panel
A155: 18 | C155: 121025 | D155: 87375 | E155: 60937.5 | F155: 45987.5 | O155: Edad otros dependientes | P155: ID | Q155: 1000 | R155: 2000 | S155: 5000 | T155: 10000
A156: 19 | C156: 125087.5 | D156: 90312.5 | E156: 62987.5 | F156: 47537.5 | O156: ='INGRESO DE DATOS'!$L$16 -> 0 | P156: 1 | Q156: =IF(O156>0,(IF(O156>18,VLOOKUP(O156,$A$155:$G$221,3,FALSE),Tablas!$C$155)),0) -> 0 | R156: =IF(O156>0,(IF(O156>18,VLOOKUP(O156,$A$155:$G$221,4,FALSE),Tablas!$D$155)),0) -> 0 | S156: =IF(O156>0,(IF(O156>18,VLOOKUP(O156,$A$155:$G$221,5,FALSE),Tablas!$E$155)),0) -> 0 | T156: =IF(O156>0,(IF(O156>18,VLOOKUP(O156,$A$155:$G$221,6,FALSE),Tablas!$F$155)),0) -> 0
A157: 20 | C157: 129300 | D157: 93350 | E157: 65100 | F157: 49137.5 | O157: ='INGRESO DE DATOS'!$L$17 -> 0 | P157: 2 | Q157: =IF(O157>0,(IF(O157>18,VLOOKUP(O157,$A$155:$G$221,3,FALSE),Tablas!$C$155)),0) -> 0 | R157: =IF(O157>0,(IF(O157>18,VLOOKUP(O157,$A$155:$G$221,4,FALSE),Tablas!$D$155)),0) -> 0 | S157: =IF(O157>0,(IF(O157>18,VLOOKUP(O157,$A$155:$G$221,5,FALSE),Tablas!$E$155)),0) -> 0 | T157: =IF(O157>0,(IF(O157>18,VLOOKUP(O157,$A$155:$G$221,6,FALSE),Tablas!$F$155)),0) -> 0
A158: 21 | C158: 133650 | D158: 96500 | E158: 67300 | F158: 50787.5 | O158: ='INGRESO DE DATOS'!$L$18 -> 0 | P158: 3 | Q158: =IF(O158>0,(IF(O158>18,VLOOKUP(O158,$A$155:$G$221,3,FALSE),Tablas!$C$155)),0) -> 0 | R158: =IF(O158>0,(IF(O158>18,VLOOKUP(O158,$A$155:$G$221,4,FALSE),Tablas!$D$155)),0) -> 0 | S158: =IF(O158>0,(IF(O158>18,VLOOKUP(O158,$A$155:$G$221,5,FALSE),Tablas!$E$155)),0) -> 0 | T158: =IF(O158>0,(IF(O158>18,VLOOKUP(O158,$A$155:$G$221,6,FALSE),Tablas!$F$155)),0) -> 0
A159: 22 | C159: 138150 | D159: 99750 | E159: 69562.5 | F159: 52500 | O159: ='INGRESO DE DATOS'!$L$19 -> 0 | P159: 4 | Q159: =IF(O159>0,(IF(O159>18,VLOOKUP(O159,$A$155:$G$221,3,FALSE),Tablas!$C$155)),0) -> 0 | R159: =IF(O159>0,(IF(O159>18,VLOOKUP(O159,$A$155:$G$221,4,FALSE),Tablas!$D$155)),0) -> 0 | S159: =IF(O159>0,(IF(O159>18,VLOOKUP(O159,$A$155:$G$221,5,FALSE),Tablas!$E$155)),0) -> 0 | T159: =IF(O159>0,(IF(O159>18,VLOOKUP(O159,$A$155:$G$221,6,FALSE),Tablas!$F$155)),0) -> 0
A160: 23 | C160: 142800 | D160: 103100 | E160: 71900 | F160: 54262.5 | O160: ='INGRESO DE DATOS'!$L$20 -> 0 | P160: 5 | Q160: =IF(O160>0,(IF(O160>18,VLOOKUP(O160,$A$155:$G$221,3,FALSE),Tablas!$C$155)),0) -> 0 | R160: =IF(O160>0,(IF(O160>18,VLOOKUP(O160,$A$155:$G$221,4,FALSE),Tablas!$D$155)),0) -> 0 | S160: =IF(O160>0,(IF(O160>18,VLOOKUP(O160,$A$155:$G$221,5,FALSE),Tablas!$E$155)),0) -> 0 | T160: =IF(O160>0,(IF(O160>18,VLOOKUP(O160,$A$155:$G$221,6,FALSE),Tablas!$F$155)),0) -> 0
A161: 24 | C161: 147600 | D161: 106575 | E161: 74312.5 | F161: 56087.5 | P161: Total | Q161: =SUM(Q156:Q160) -> 0 | R161: =SUM(R156:R160) -> 0 | S161: =SUM(S156:S160) -> 0 | T161: =SUM(T156:T160) -> 0
A162: 25 | C162: 152575 | D162: 110150 | E162: 76825 | F162: 57975
A163: 26 | C163: 157700 | D163: 113862.5 | E163: 79400 | F163: 59925
A164: 27 | C164: 163012.5 | D164: 117687.5 | E164: 82075 | F164: 61937.5
A165: 28 | C165: 168500 | D165: 121650 | E165: 84837.5 | F165: 64025
A166: 29 | C166: 174162.5 | D166: 125750 | E166: 87687.5 | F166: 66187.5
A167: 30 | C167: 180025 | D167: 129975 | E167: 90637.5 | F167: 68412.5
A168: 31 | C168: 186087.5 | D168: 134350 | E168: 93687.5 | F168: 70712.5
A169: 32 | C169: 192350 | D169: 138875 | E169: 96850 | F169: 73087.5
A170: 33 | C170: 198812.5 | D170: 143550 | E170: 100100 | F170: 75550
A171: 34 | C171: 205500 | D171: 148375 | E171: 103475 | F171: 78087.5
A172: 35 | C172: 209925 | D172: 151575 | E172: 105700 | F172: 79775
A173: 36 | C173: 213375 | D173: 154050 | E173: 107437.5 | F173: 81087.5
A174: 37 | C174: 216875 | D174: 156587.5 | E174: 109200 | F174: 82412.5
A175: 38 | C175: 220437.5 | D175: 159150 | E175: 110987.5 | F175: 83762.5
A176: 39 | C176: 224050 | D176: 161762.5 | E176: 112812.5 | F176: 85137.5
A177: 40 | C177: 227725 | D177: 164425 | E177: 114662.5 | F177: 86537.5
A178: 41 | C178: 231462.5 | D178: 167125 | E178: 116537.5 | F178: 87962.5
A179: 42 | C179: 235262.5 | D179: 169862.5 | E179: 118450 | F179: 89400
A180: 43 | C180: 239125 | D180: 172650 | E180: 120400 | F180: 90862.5
A181: 44 | C181: 243050 | D181: 175487.5 | E181: 122375 | F181: 92362.5
A182: 45 | C182: 247037.5 | D182: 178362.5 | E182: 124387.5 | F182: 93875
A183: 46 | C183: 251087.5 | D183: 181287.5 | E183: 126425 | F183: 95412.5
A184: 47 | C184: 255212.5 | D184: 184262.5 | E184: 128500 | F184: 96975
A185: 48 | C185: 259400 | D185: 187287.5 | E185: 130612.5 | F185: 98575
A186: 49 | C186: 265225 | D186: 191487.5 | E186: 133537.5 | F186: 100787.5
A187: 50 | C187: 275075 | D187: 198612.5 | E187: 138500 | F187: 104525
A188: 51 | C188: 285300 | D188: 205987.5 | E188: 143650 | F188: 108412.5
A189: 52 | C189: 295912.5 | D189: 213650 | E189: 148987.5 | F189: 112450
A190: 53 | C190: 306912.5 | D190: 221587.5 | E190: 154525 | F190: 116625
A191: 54 | C191: 318312.5 | D191: 229825 | E191: 160275 | F191: 120962.5
A192: 55 | C192: 330150 | D192: 238362.5 | E192: 166225 | F192: 125450
A193: 56 | C193: 342362.5 | D193: 247187.5 | E193: 172375 | F193: 130100
A194: 57 | C194: 361175 | D194: 260775 | E194: 181850 | F194: 137250
A195: 58 | C195: 382850 | D195: 276412.5 | E195: 192762.5 | F195: 145487.5
A196: 59 | C196: 405825 | D196: 293000 | E196: 204325 | F196: 154212.5
A197: 60 | C197: 432200 | D197: 312050 | E197: 217612.5 | F197: 164237.5
A198: 61 | C198: 460287.5 | D198: 332325 | E198: 231750 | F198: 174912.5
A199: 62 | C199: 490212.5 | D199: 353925 | E199: 246825 | F199: 186275
A200: 63 | C200: 522075 | D200: 376937.5 | E200: 262862.5 | F200: 198387.5
A201: 64 | C201: 556012.5 | D201: 401437.5 | E201: 279950 | F201: 211275
A202: 65 | C202: 592150 | D202: 427525 | E202: 298150 | F202: 225012.5
... 1427 more rows
